Workbook

Sheet 工作表1
A1: 員工健康檢查管制程式（113.1.1 起使用版）
A2: 使用單位： | D2: 審計部臺北市審計處 | R2: 管制起始年度： | AC2: 111
G3: =SUM(Q6:Q505) -> 38000 | R3: =SUM(AB6:AB505) -> 63000 | AC3: =SUM(AM6:AM505) -> 44000 | AN3: =SUM(AX6:AX505) -> 11 | AY3: =SUM(BI6:BI505) -> 44000 | BJ3: =SUM(BT6:BT505) -> 11 | BU3: =SUM(CE6:CE505) -> 44000 | CF3: =SUM(CP6:CP505) -> 11 | CQ3: =SUM(DA6:DA505) -> 44000 | DB3: =SUM(DL6:DL505) -> 11 | DM3: =SUM(DW6:DW505) -> 44000 | DX3: =SUM(EH6:EH505) -> 11
A4: 序號 | B4: 姓名 | C4: 職稱 | D4: 出生日期 | E4: 年齡 | G4: =AC2 -> 111 | R4: =G4+1 -> 112 | AC4: =R4+1 -> 113 | AN4: =AC4+1 -> 114 | AY4: =AN4+1 -> 115 | BJ4: =AY4+1 -> 116 | BU4: =BJ4+1 -> 117 | CF4: =BU4+1 -> 118 | CQ4: =CF4+1 -> 119 | DB4: =CQ4+1 -> 120 | DM4: =DB4+1 -> 121 | DX4: =DM4+1 -> 122
F5: 類別 | G5: 姓名 | H5: 年齡 | I5: 健檢日期 | J5: 職稱 | Q5: 補助金額 | R5: 姓名 | S5: 年齡 | T5: 健檢日期 | U5: 職稱 | AB5: 補助金額 | AC5: 姓名 | AD5: 年齡 | AE5: 職稱 | AG5: 健檢日期 | AH5: =AC4-2&"補助" -> 111補助 | AI5: =AC4-1&"年補助" -> 112年補助 | AJ5: 本年身分別（自填） | AK5: 資格初判 | AL5: 今年上限 | AM5: 實發金額 | AN5: 姓名 | AO5: 年齡 | AP5: 職稱 | AQ5: 健檢日期 | AS5: =AN4-2&"補助" -> 112補助 | AT5: =AN4-1&"年補助" -> 113年補助 | AU5: 本年身分別（自填） | AV5: 資格初判 | AW5: 今年上限 | AX5: 實發金額 | AY5: 姓名 | AZ5: 年齡 | BA5: 職稱 | BC5: 健檢日期 | BD5: =AY4-2&"補助" -> 113補助 | BE5: =AY4-1&"年補助" -> 114年補助 | BF5: 本年身分別（自填） | BG5: 資格初判 | BH5: 今年上限 | BI5: 實發金額 | BJ5: 姓名 | BK5: 年齡 | BL5: 職稱 | BM5: 健檢日期 | BO5: =BJ4-2&"補助" -> 114補助 | BP5: =BJ4-1&"年補助" -> 115年補助 | BQ5: 本年身分別（自填） | BR5: 資格初判 | BS5: 今年上限 | BT5: 實發金額 | BU5: 姓名 | BV5: 年齡 | BW5: 職稱 | BY5: 健檢日期 | BZ5: =BU4-2&"補助" -> 115補助 | CA5: =BU4-1&"年補助" -> 116年補助 | CB5: 本年身分別（自填） | CC5: 資格初判 | CD5: 今年上限 | CE5: 實發金額 | CF5: 姓名 | CG5: 年齡 | CH5: 職稱 | CI5: 健檢日期 | CK5: =CF4-2&"補助" -> 116補助 | CL5: =CF4-1&"年補助" -> 117年補助 | CM5: 本年身分別（自填） | CN5: 資格初判 | CO5: 今年上限 | CP5: 實發金額 | CQ5: 姓名 | CR5: 年齡 | CS5: 職稱 | CU5: 健檢日期 | CV5: =CQ4-2&"補助" -> 117補助 | CW5: =CQ4-1&"年補助" -> 118年補助 | CX5: 本年身分別（自填） | CY5: 資格初判 | CZ5: 今年上限 | DA5: 實發金額 | DB5: 姓名 | DC5: 年齡 | DD5: 職稱 | DE5: 健檢日期 | DG5: =DB4-2&"補助" -> 118補助 | DH5: =DB4-1&"年補助" -> 119年補助 | DI5: 本年身分別（自填） | DJ5: 資格初判 | DK5: 今年上限 | DL5: 實發金額 | DM5: 姓名 | DN5: 年齡 | DO5: 職稱 | DQ5: 健檢日期 | DR5: =DM4-2&"補助" -> 119補助 | DS5: =DM4-1&"年補助" -> 120年補助 | DT5: 本年身分別（自填） | DU5: 資格初判 | DV5: 今年上限 | DW5: 實發金額 | DX5: 姓名 | DY5: 年齡 | DZ5: 職稱 | EA5: 健檢日期 | EC5: =DX4-2&"補助" -> 120補助 | ED5: =DX4-1&"年補助" -> 121年補助 | EE5: 本年身分別（自填） | EF5: 資格初判 | EG5: 今年上限 | EH5: 實發金額
A6: 1 | B6: 王一 | C6: 處長 | D6: 540522 | G6: 王一 | H6: =IF(G6="","",IFERROR(G$4-LEFT(VLOOKUP(G6,$B$6:$D$1899,3,0),2)-1,"未建檔")) -> 56 | I6: 1110225 | J6: =IF(G6="","",IF(IFERROR(VLOOKUP(G6,$B$6:$D$505,2,0),"")="",0,VLOOKUP(G6,$B$6:$Q$505,2,0))) -> 處長 | Q6: 16000 | R6: 張三 | S6: =IF(R6="","",IFERROR(R$4-LEFT(VLOOKUP(R6,$B$6:$D$1899,3,0),2)-1,"未建檔")) -> 60 | T6: 1120225 | U6: =IF(R6="","",IF(IFERROR(VLOOKUP(R6,$B$6:$D$505,2,0),"")="",0,VLOOKUP(R6,$B$6:$Q$505,2,0))) -> 科長 | AB6: 4500 | AC6: 柯七 | AD6: =IF(AC6="","",IFERROR(AC$4-LEFT(VLOOKUP(AC6,$B$6:$D$1899,3,0),2)-1,"未建檔")) -> 39 | AE6: =IF(AC6="","",IF(IFERROR(VLOOKUP(AC6,$B$6:$D$505,2,0),"")="",0,VLOOKUP(AC6,$B$6:$Q$505,2,0))) -> 科員 | AG6: 1 | AH6: =IF(AC6="","",IF(IFERROR(VLOOKUP(AC6,G$6:Q$505,11,0),"")="",0,VLOOKUP(AC6,G$6:Q$505,11,0))) -> 自費公假 | AI6: =IF(AC6="","",IF(IFERROR(VLOOKUP(AC6,R$6:AB$505,11,0),"")="",0,VLOOKUP(AC6,R$6:AB$505,11,0))) -> 自費公假 | AJ6: 2年1次自費公假 | AK6: =IF(AC6="","",IF(AND(AJ6="2年1次自費公假",AI6=0),"自費公假",IF(AND(MID(AJ6,1,4)="3年1次",AI6=0,AH6=0),"核符，且前2年未補助",IF(AND(OR(MID(AJ6,1,9)="1年1次16000",MID(AJ6,1,9)="1年1次 8000",MID(AJ6,1,9)="1年1次 4000",MID(AJ6,1,9)="2年1次 4500"),AI6=0),"核符，且去年未補助",IF(AND(MID(AJ6,11,1)="可",AI6>0,OR(MID(AJ6,1,9)="1年1次16000",MID(AJ6,1,9)="1年1次 8000",MID(AJ6,1,9)="1年1次 4000")),"核符，但去年曾獲補助",IF(AND(MID(AJ6,11,1)="不",AI6>0,OR(MID(AJ6,1,9)="1年1次16000",MID(AJ6,1,9)="1年1次 8000",MID(AJ6,1,9)="1年1次 4000")),"核符","不符補助")))))) -> 不符補助 | AL6: =IF(AD6="","",IF(AK6="自費公假","自費公假",IF(OR(AK6="核符，且前2年未補助",AND(AK6="核符，且去年未補助",AJ6="2年1次 4500，不可併去年")),VALUE(MID(AJ6,5,5)),IF(AK6="不符補助",0,IF(MID(AJ6,11,1)="不",MID(AJ6,5,5)*2,IF(AND(MID(AJ6,11,1)="可",AI6=0),MID(AJ6,5,5)*2,VALUE(MID(AJ6,5,5)))))))) -> 0 | AM6: 自費公假 | AN6: 王一 | AO6: =IF(AN6="","",IFERROR(AN$4-LEFT(VLOOKUP(AN6,$B$6:$D$1899,3,0),2)-1,"未建檔")) -> 59 | AP6: =IF(AN6="","",IF(IFERROR(VLOOKUP(AN6,$B$6:$D$505,2,0),"")="",0,VLOOKUP(AN6,$B$6:$Q$505,2,0))) -> 處長 | AQ6: 1 | AS6: =IF(AN6="","",IF(IFERROR(VLOOKUP(AN6,R$6:AB$505,11,0),"")="",0,VLOOKUP(AN6,R$6:AB$505,11,0))) -> 12000 | AT6: =IF(AN6="","",IF(IFERROR(VLOOKUP(AN6,AC$6:AM$505,11,0),"")="",0,VLOOKUP(AN6,AC$6:AM$505,11,0))) -> 16000 | AU6: 1年1次16000，不可併去年 | AV6: =IF(AN6="","",IF(AND(AU6="2年1次自費公假",AT6=0),"自費公假",IF(AND(MID(AU6,1,4)="3年1次",AT6=0,AS6=0),"核符，且前2年未補助",IF(AND(OR(MID(AU6,1,9)="1年1次16000",MID(AU6,1,9)="1年1次 8000",MID(AU6,1,9)="1年1次 4000",MID(AU6,1,9)="2年1次 4500"),AT6=0),"核符，且去年未補助",IF(AND(MID(AU6,11,1)="可",AT6>0,OR(MID(AU6,1,9)="1年1次16000",MID(AU6,1,9)="1年1次 8000",MID(AU6,1,9)="1年1次 4000")),"核符，但去年曾獲補助",IF(AND(MID(AU6,11,1)="不",AT6>0,OR(MID(AU6,1,9)="1年1次16000",MID(AU6,1,9)="1年1次 8000",MID(AU6,1,9)="1年1次 4000")),"核符","不符補助")))))) -> 核符 | AW6: =IF(AO6="","",IF(AV6="自費公假","自費公假",IF(OR(AV6="核符，且前2年未補助",AND(AV6="核符，且去年未補助",AU6="2年1次 4500，不可併去年")),VALUE(MID(AU6,5,5)),IF(AV6="不符補助",0,IF(MID(AU6,11,1)="不",MID(AU6,5,5)*2,IF(AND(MID(AU6,11,1)="可",AT6=0),MID(AU6,5,5)*2,VALUE(MID(AU6,5,5)))))))) -> 32000 | AX6: 11 | AY6: 柯七 | AZ6: =IF(AY6="","",IFERROR(AY$4-LEFT(VLOOKUP(AY6,$B$6:$D$1899,3,0),2)-1,"未建檔")) -> 41 | BA6: =IF(AY6="","",IF(IFERROR(VLOOKUP(AY6,$B$6:$D$505,2,0),"")="",0,VLOOKUP(AY6,$B$6:$Q$505,2,0))) -> 科員 | BC6: 11 | BD6: =IF(AY6="","",IF(IFERROR(VLOOKUP(AY6,AC$6:AM$505,11,0),"")="",0,VLOOKUP(AY6,AC$6:AM$505,11,0))) -> 自費公假 | BE6: =IF(AY6="","",IF(IFERROR(VLOOKUP(AY6,AN$6:AX$505,11,0),"")="",0,VLOOKUP(AY6,AN$6:AX$505,11,0))) -> 0 | BF6: 2年1次自費公假 | BG6: =IF(AY6="","",IF(AND(BF6="2年1次自費公假",BE6=0),"自費公假",IF(AND(MID(BF6,1,4)="3年1次",BE6=0,BD6=0),"核符，且前2年未補助",IF(AND(OR(MID(BF6,1,9)="1年1次16000",MID(BF6,1,9)="1年1次 8000",MID(BF6,1,9)="1年1次 4000",MID(BF6,1,9)="2年1次 4500"),BE6=0),"核符，且去年未補助",IF(AND(MID(BF6,11,1)="可",BE6>0,OR(MID(BF6,1,9)="1年1次16000",MID(BF6,1,9)="1年1次 8000",MID(BF6,1,9)="1年1次 4000")),"核符，但去年曾獲補助",IF(AND(MID(BF6,11,1)="不",BE6>0,OR(MID(BF6,1,9)="1年1次16000",MID(BF6,1,9)="1年1次 8000",MID(BF6,1,9)="1年1次 4000")),"核符","不符補助")))))) -> 自費公假 | BH6: =IF(AZ6="","",IF(BG6="自費公假","自費公假",IF(OR(BG6="核符，且前2年未補助",AND(BG6="核符，且去年未補助",BF6="2年1次 4500，不可併去年")),VALUE(MID(BF6,5,5)),IF(BG6="不符補助",0,IF(MID(BF6,11,1)="不",MID(BF6,5,5)*2,IF(AND(MID(BF6,11,1)="可",BE6=0),MID(BF6,5,5)*2,VALUE(MID(BF6,5,5)))))))) -> 自費公假 | BI6: 自費公假 | BJ6: 王一 | BK6: =IF(BJ6="","",IFERROR(BJ$4-LEFT(VLOOKUP(BJ6,$B$6:$D$1899,3,0),2)-1,"未建檔")) -> 61 | BL6: =IF(BJ6="","",IF(IFERROR(VLOOKUP(BJ6,$B$6:$D$505,2,0),"")="",0,VLOOKUP(BJ6,$B$6:$Q$505,2,0))) -> 處長 | BM6: 11 | BO6: =IF(BJ6="","",IF(IFERROR(VLOOKUP(BJ6,AN$6:AX$505,11,0),"")="",0,VLOOKUP(BJ6,AN$6:AX$505,11,0))) -> 11 | BP6: =IF(BJ6="","",IF(IFERROR(VLOOKUP(BJ6,AY$6:BI$505,11,0),"")="",0,VLOOKUP(BJ6,AY$6:BI$505,11,0))) -> 16000 | BQ6: 1年1次16000，不可併去年 | BR6: =IF(BJ6="","",IF(AND(BQ6="2年1次自費公假",BP6=0),"自費公假",IF(AND(MID(BQ6,1,4)="3年1次",BP6=0,BO6=0),"核符，且前2年未補助",IF(AND(OR(MID(BQ6,1,9)="1年1次16000",MID(BQ6,1,9)="1年1次 8000",MID(BQ6,1,9)="1年1次 4000",MID(BQ6,1,9)="2年1次 4500"),BP6=0),"核符，且去年未補助",IF(AND(MID(BQ6,11,1)="可",BP6>0,OR(MID(BQ6,1,9)="1年1次16000",MID(BQ6,1,9)="1年1次 8000",MID(BQ6,1,9)="1年1次 4000")),"核符，但去年曾獲補助",IF(AND(MID(BQ6,11,1)="不",BP6>0,OR(MID(BQ6,1,9)="1年1次16000",MID(BQ6,1,9)="1年1次 8000",MID(BQ6,1,9)="1年1次 4000")),"核符","不符補助")))))) -> 核符 | BS6: =IF(BK6="","",IF(BR6="自費公假","自費公假",IF(OR(BR6="核符，且前2年未補助",AND(BR6="核符，且去年未補助",BQ6="2年1次 4500，不可併去年")),VALUE(MID(BQ6,5,5)),IF(BR6="不符補助",0,IF(MID(BQ6,11,1)="不",MID(BQ6,5,5)*2,IF(AND(MID(BQ6,11,1)="可",BP6=0),MID(BQ6,5,5)*2,VALUE(MID(BQ6,5,5)))))))) -> 32000 | BT6: 11 | BU6: 柯七 | BV6: =IF(BU6="","",IFERROR(BU$4-LEFT(VLOOKUP(BU6,$B$6:$D$1899,3,0),2)-1,"未建檔")) -> 43 | BW6: =IF(BU6="","",IF(IFERROR(VLOOKUP(BU6,$B$6:$D$505,2,0),"")="",0,VLOOKUP(BU6,$B$6:$Q$505,2,0))) -> 科員 | BY6: 11 | BZ6: =IF(BU6="","",IF(IFERROR(VLOOKUP(BU6,AY$6:BI$505,11,0),"")="",0,VLOOKUP(BU6,AY$6:BI$505,11,0))) -> 自費公假 | CA6: =IF(BU6="","",IF(IFERROR(VLOOKUP(BU6,BJ$6:BT$505,11,0),"")="",0,VLOOKUP(BU6,BJ$6:BT$505,11,0))) -> 0 | CB6: 2年1次自費公假 | CC6: =IF(BU6="","",IF(AND(CB6="2年1次自費公假",CA6=0),"自費公假",IF(AND(MID(CB6,1,4)="3年1次",CA6=0,BZ6=0),"核符，且前2年未補助",IF(AND(OR(MID(CB6,1,9)="1年1次16000",MID(CB6,1,9)="1年1次 8000",MID(CB6,1,9)="1年1次 4000",MID(CB6,1,9)="2年1次 4500"),CA6=0),"核符，且去年未補助",IF(AND(MID(CB6,11,1)="可",CA6>0,OR(MID(CB6,1,9)="1年1次16000",MID(CB6,1,9)="1年1次 8000",MID(CB6,1,9)="1年1次 4000")),"核符，但去年曾獲補助",IF(AND(MID(CB6,11,1)="不",CA6>0,OR(MID(CB6,1,9)="1年1次16000",MID(CB6,1,9)="1年1次 8000",MID(CB6,1,9)="1年1次 4000")),"核符","不符補助")))))) -> 自費公假 | CD6: =IF(BV6="","",IF(CC6="自費公假","自費公假",IF(OR(CC6="核符，且前2年未補助",AND(CC6="核符，且去年未補助",CB6="2年1次 4500，不可併去年")),VALUE(MID(CB6,5,5)),IF(CC6="不符補助",0,IF(MID(CB6,11,1)="不",MID(CB6,5,5)*2,IF(AND(MID(CB6,11,1)="可",CA6=0),MID(CB6,5,5)*2,VALUE(MID(CB6,5,5)))))))) -> 自費公假 | CE6: 自費公假 | CF6: 王一 | CG6: =IF(CF6="","",IFERROR(CF$4-LEFT(VLOOKUP(CF6,$B$6:$D$1899,3,0),2)-1,"未建檔")) -> 63 | CH6: =IF(CF6="","",IF(IFERROR(VLOOKUP(CF6,$B$6:$D$505,2,0),"")="",0,VLOOKUP(CF6,$B$6:$Q$505,2,0))) -> 處長 | CI6: 11 | CK6: =IF(CF6="","",IF(IFERROR(VLOOKUP(CF6,BJ$6:BT$505,11,0),"")="",0,VLOOKUP(CF6,BJ$6:BT$505,11,0))) -> 11 | CL6: =IF(CF6="","",IF(IFERROR(VLOOKUP(CF6,BU$6:CE$505,11,0),"")="",0,VLOOKUP(CF6,BU$6:CE$505,11,0))) -> 16000 | CM6: 1年1次16000，不可併去年 | CN6: =IF(CF6="","",IF(AND(CM6="2年1次自費公假",CL6=0),"自費公假",IF(AND(MID(CM6,1,4)="3年1次",CL6=0,CK6=0),"核符，且前2年未補助",IF(AND(OR(MID(CM6,1,9)="1年1次16000",MID(CM6,1,9)="1年1次 8000",MID(CM6,1,9)="1年1次 4000",MID(CM6,1,9)="2年1次 4500"),CL6=0),"核符，且去年未補助",IF(AND(MID(CM6,11,1)="可",CL6>0,OR(MID(CM6,1,9)="1年1次16000",MID(CM6,1,9)="1年1次 8000",MID(CM6,1,9)="1年1次 4000")),"核符，但去年曾獲補助",IF(AND(MID(CM6,11,1)="不",CL6>0,OR(MID(CM6,1,9)="1年1次16000",MID(CM6,1,9)="1年1次 8000",MID(CM6,1,9)="1年1次 4000")),"核符","不符補助")))))) -> 核符 | CO6: =IF(CG6="","",IF(CN6="自費公假","自費公假",IF(OR(CN6="核符，且前2年未補助",AND(CN6="核符，且去年未補助",CM6="2年1次 4500，不可併去年")),VALUE(MID(CM6,5,5)),IF(CN6="不符補助",0,IF(MID(CM6,11,1)="不",MID(CM6,5,5)*2,IF(AND(MID(CM6,11,1)="可",CL6=0),MID(CM6,5,5)*2,VALUE(MID(CM6,5,5)))))))) -> 32000 | CP6: 11 | CQ6: 柯七 | CR6: =IF(CQ6="","",IFERROR(CQ$4-LEFT(VLOOKUP(CQ6,$B$6:$D$1899,3,0),2)-1,"未建檔")) -> 45 | CS6: =IF(CQ6="","",IF(IFERROR(VLOOKUP(CQ6,$B$6:$D$505,2,0),"")="",0,VLOOKUP(CQ6,$B$6:$Q$505,2,0))) -> 科員 | CU6: 11 | CV6: =IF(CQ6="","",IF(IFERROR(VLOOKUP(CQ6,BU$6:CE$505,11,0),"")="",0,VLOOKUP(CQ6,BU$6:CE$505,11,0))) -> 自費公假 | CW6: =IF(CQ6="","",IF(IFERROR(VLOOKUP(CQ6,CF$6:CP$505,11,0),"")="",0,VLOOKUP(CQ6,CF$6:CP$505,11,0))) -> 0 | CX6: 2年1次自費公假 | CY6: =IF(CQ6="","",IF(AND(CX6="2年1次自費公假",CW6=0),"自費公假",IF(AND(MID(CX6,1,4)="3年1次",CW6=0,CV6=0),"核符，且前2年未補助",IF(AND(OR(MID(CX6,1,9)="1年1次16000",MID(CX6,1,9)="1年1次 8000",MID(CX6,1,9)="1年1次 4000",MID(CX6,1,9)="2年1次 4500"),CW6=0),"核符，且去年未補助",IF(AND(MID(CX6,11,1)="可",CW6>0,OR(MID(CX6,1,9)="1年1次16000",MID(CX6,1,9)="1年1次 8000",MID(CX6,1,9)="1年1次 4000")),"核符，但去年曾獲補助",IF(AND(MID(CX6,11,1)="不",CW6>0,OR(MID(CX6,1,9)="1年1次16000",MID(CX6,1,9)="1年1次 8000",MID(CX6,1,9)="1年1次 4000")),"核符","不符補助")))))) -> 自費公假 | CZ6: =IF(CR6="","",IF(CY6="自費公假","自費公假",IF(OR(CY6="核符，且前2年未補助",AND(CY6="核符，且去年未補助",CX6="2年1次 4500，不可併去年")),VALUE(MID(CX6,5,5)),IF(CY6="不符補助",0,IF(MID(CX6,11,1)="不",MID(CX6,5,5)*2,IF(AND(MID(CX6,11,1)="可",CW6=0),MID(CX6,5,5)*2,VALUE(MID(CX6,5,5)))))))) -> 自費公假 | DA6: 自費公假 | DB6: 王一 | DC6: =IF(DB6="","",IFERROR(DB$4-LEFT(VLOOKUP(DB6,$B$6:$D$1899,3,0),2)-1,"未建檔")) -> 65 | DD6: =IF(DB6="","",IF(IFERROR(VLOOKUP(DB6,$B$6:$D$505,2,0),"")="",0,VLOOKUP(DB6,$B$6:$Q$505,2,0))) -> 處長 | DE6: 11 | DG6: =IF(DB6="","",IF(IFERROR(VLOOKUP(DB6,CF$6:CP$505,11,0),"")="",0,VLOOKUP(DB6,CF$6:CP$505,11,0))) -> 11 | DH6: =IF(DB6="","",IF(IFERROR(VLOOKUP(DB6,CQ$6:DA$505,11,0),"")="",0,VLOOKUP(DB6,CQ$6:DA$505,11,0))) -> 16000 | DI6: 1年1次16000，不可併去年 | DJ6: =IF(DB6="","",IF(AND(DI6="2年1次自費公假",DH6=0),"自費公假",IF(AND(MID(DI6,1,4)="3年1次",DH6=0,DG6=0),"核符，且前2年未補助",IF(AND(OR(MID(DI6,1,9)="1年1次16000",MID(DI6,1,9)="1年1次 8000",MID(DI6,1,9)="1年1次 4000",MID(DI6,1,9)="2年1次 4500"),DH6=0),"核符，且去年未補助",IF(AND(MID(DI6,11,1)="可",DH6>0,OR(MID(DI6,1,9)="1年1次16000",MID(DI6,1,9)="1年1次 8000",MID(DI6,1,9)="1年1次 4000")),"核符，但去年曾獲補助",IF(AND(MID(DI6,11,1)="不",DH6>0,OR(MID(DI6,1,9)="1年1次16000",MID(DI6,1,9)="1年1次 8000",MID(DI6,1,9)="1年1次 4000")),"核符","不符補助")))))) -> 核符 | DK6: =IF(DC6="","",IF(DJ6="自費公假","自費公假",IF(OR(DJ6="核符，且前2年未補助",AND(DJ6="核符，且去年未補助",DI6="2年1次 4500，不可併去年")),VALUE(MID(DI6,5,5)),IF(DJ6="不符補助",0,IF(MID(DI6,11,1)="不",MID(DI6,5,5)*2,IF(AND(MID(DI6,11,1)="可",DH6=0),MID(DI6,5,5)*2,VALUE(MID(DI6,5,5)))))))) -> 32000 | DL6: 11 | DM6: 柯七 | DN6: =IF(DM6="","",IFERROR(DM$4-LEFT(VLOOKUP(DM6,$B$6:$D$1899,3,0),2)-1,"未建檔")) -> 47 | DO6: =IF(DM6="","",IF(IFERROR(VLOOKUP(DM6,$B$6:$D$505,2,0),"")="",0,VLOOKUP(DM6,$B$6:$Q$505,2,0))) -> 科員 | DQ6: 11 | DR6: =IF(DM6="","",IF(IFERROR(VLOOKUP(DM6,CQ$6:DA$505,11,0),"")="",0,VLOOKUP(DM6,CQ$6:DA$505,11,0))) -> 自費公假 | DS6: =IF(DM6="","",IF(IFERROR(VLOOKUP(DM6,DB$6:DL$505,11,0),"")="",0,VLOOKUP(DM6,DB$6:DL$505,11,0))) -> 0 | DT6: 2年1次自費公假 | DU6: =IF(DM6="","",IF(AND(DT6="2年1次自費公假",DS6=0),"自費公假",IF(AND(MID(DT6,1,4)="3年1次",DS6=0,DR6=0),"核符，且前2年未補助",IF(AND(OR(MID(DT6,1,9)="1年1次16000",MID(DT6,1,9)="1年1次 8000",MID(DT6,1,9)="1年1次 4000",MID(DT6,1,9)="2年1次 4500"),DS6=0),"核符，且去年未補助",IF(AND(MID(DT6,11,1)="可",DS6>0,OR(MID(DT6,1,9)="1年1次16000",MID(DT6,1,9)="1年1次 8000",MID(DT6,1,9)="1年1次 4000")),"核符，但去年曾獲補助",IF(AND(MID(DT6,11,1)="不",DS6>0,OR(MID(DT6,1,9)="1年1次16000",MID(DT6,1,9)="1年1次 8000",MID(DT6,1,9)="1年1次 4000")),"核符","不符補助")))))) -> 自費公假 | DV6: =IF(DN6="","",IF(DU6="自費公假","自費公假",IF(OR(DU6="核符，且前2年未補助",AND(DU6="核符，且去年未補助",DT6="2年1次 4500，不可併去年")),VALUE(MID(DT6,5,5)),IF(DU6="不符補助",0,IF(MID(DT6,11,1)="不",MID(DT6,5,5)*2,IF(AND(MID(DT6,11,1)="可",DS6=0),MID(DT6,5,5)*2,VALUE(MID(DT6,5,5)))))))) -> 自費公假 | DW6: 自費公假 | DX6: 王一 | DY6: =IF(DX6="","",IFERROR(DX$4-LEFT(VLOOKUP(DX6,$B$6:$D$1899,3,0),2)-1,"未建檔")) -> 67 | DZ6: =IF(DX6="","",IF(IFERROR(VLOOKUP(DX6,$B$6:$D$505,2,0),"")="",0,VLOOKUP(DX6,$B$6:$Q$505,2,0))) -> 處長 | EA6: 11 | EC6: =IF(DX6="","",IF(IFERROR(VLOOKUP(DX6,DB$6:DL$505,11,0),"")="",0,VLOOKUP(DX6,DB$6:DL$505,11,0))) -> 11 | ED6: =IF(DX6="","",IF(IFERROR(VLOOKUP(DX6,DM$6:DW$505,11,0),"")="",0,VLOOKUP(DX6,DM$6:DW$505,11,0))) -> 16000 | EE6: 1年1次16000，不可併去年 | EF6: =IF(DX6="","",IF(AND(EE6="2年1次自費公假",ED6=0),"自費公假",IF(AND(MID(EE6,1,4)="3年1次",ED6=0,EC6=0),"核符，且前2年未補助",IF(AND(OR(MID(EE6,1,9)="1年1次16000",MID(EE6,1,9)="1年1次 8000",MID(EE6,1,9)="1年1次 4000",MID(EE6,1,9)="2年1次 4500"),ED6=0),"核符，且去年未補助",IF(AND(MID(EE6,11,1)="可",ED6>0,OR(MID(EE6,1,9)="1年1次16000",MID(EE6,1,9)="1年1次 8000",MID(EE6,1,9)="1年1次 4000")),"核符，但去年曾獲補助",IF(AND(MID(EE6,11,1)="不",ED6>0,OR(MID(EE6,1,9)="1年1次16000",MID(EE6,1,9)="1年1次 8000",MID(EE6,1,9)="1年1次 4000")),"核符","不符補助")))))) -> 核符 | EG6: =IF(DY6="","",IF(EF6="自費公假","自費公假",IF(OR(EF6="核符，且前2年未補助",AND(EF6="核符，且去年未補助",EE6="2年1次 4500，不可併去年")),VALUE(MID(EE6,5,5)),IF(EF6="不符補助",0,IF(MID(EE6,11,1)="不",MID(EE6,5,5)*2,IF(AND(MID(EE6,11,1)="可",ED6=0),MID(EE6,5,5)*2,VALUE(MID(EE6,5,5)))))))) -> 32000 | EH6: 11
A7: 2 | B7: 許二 | C7: 副處長 | D7: 560314 | G7: 董八 | H7: =IF(G7="","",IFERROR(G$4-LEFT(VLOOKUP(G7,$B$6:$D$1899,3,0),2)-1,"未建檔")) -> 45 | I7: 1110305 | J7: =IF(G7="","",IF(IFERROR(VLOOKUP(G7,$B$6:$D$505,2,0),"")="",0,VLOOKUP(G7,$B$6:$Q$505,2,0))) -> 科員 | Q7: 4000 | R7: 王一 | S7: =IF(R7="","",IFERROR(R$4-LEFT(VLOOKUP(R7,$B$6:$D$1899,3,0),2)-1,"未建檔")) -> 57 | T7: 1120306 | U7: =IF(R7="","",IF(IFERROR(VLOOKUP(R7,$B$6:$D$505,2,0),"")="",0,VLOOKUP(R7,$B$6:$Q$505,2,0))) -> 處長 | AB7: 12000 | AC7: 王一 | AD7: =IF(AC7="","",IFERROR(AC$4-LEFT(VLOOKUP(AC7,$B$6:$D$1899,3,0),2)-1,"未建檔")) -> 58 | AE7: =IF(AC7="","",IF(IFERROR(VLOOKUP(AC7,$B$6:$D$505,2,0),"")="",0,VLOOKUP(AC7,$B$6:$Q$505,2,0))) -> 處長 | AH7: =IF(AC7="","",IF(IFERROR(VLOOKUP(AC7,G$6:Q$505,11,0),"")="",0,VLOOKUP(AC7,G$6:Q$505,11,0))) -> 16000 | AI7: =IF(AC7="","",IF(IFERROR(VLOOKUP(AC7,R$6:AB$505,11,0),"")="",0,VLOOKUP(AC7,R$6:AB$505,11,0))) -> 12000 | AJ7: 1年1次16000，可併去年 | AK7: =IF(AC7="","",IF(AND(AJ7="2年1次自費公假",AI7=0),"自費公假",IF(AND(MID(AJ7,1,4)="3年1次",AI7=0,AH7=0),"核符，且前2年未補助",IF(AND(OR(MID(AJ7,1,9)="1年1次16000",MID(AJ7,1,9)="1年1次 8000",MID(AJ7,1,9)="1年1次 4000",MID(AJ7,1,9)="2年1次 4500"),AI7=0),"核符，且去年未補助",IF(AND(MID(AJ7,11,1)="可",AI7>0,OR(MID(AJ7,1,9)="1年1次16000",MID(AJ7,1,9)="1年1次 8000",MID(AJ7,1,9)="1年1次 4000")),"核符，但去年曾獲補助",IF(AND(MID(AJ7,11,1)="不",AI7>0,OR(MID(AJ7,1,9)="1年1次16000",MID(AJ7,1,9)="1年1次 8000",MID(AJ7,1,9)="1年1次 4000")),"核符","不符補助")))))) -> 核符，但去年曾獲補助 | AL7: 16000 | AM7: 16000 | AN7: 高五 | AO7: =IF(AN7="","",IFERROR(AN$4-LEFT(VLOOKUP(AN7,$B$6:$D$1899,3,0),2)-1,"未建檔")) -> 53 | AP7: =IF(AN7="","",IF(IFERROR(VLOOKUP(AN7,$B$6:$D$505,2,0),"")="",0,VLOOKUP(AN7,$B$6:$Q$505,2,0))) -> 科員 | AS7: =IF(AN7="","",IF(IFERROR(VLOOKUP(AN7,R$6:AB$505,11,0),"")="",0,VLOOKUP(AN7,R$6:AB$505,11,0))) -> 0 | AT7: =IF(AN7="","",IF(IFERROR(VLOOKUP(AN7,AC$6:AM$505,11,0),"")="",0,VLOOKUP(AN7,AC$6:AM$505,11,0))) -> 4000 | AU7: 2年1次 4500，不可併去年 | AV7: =IF(AN7="","",IF(AND(AU7="2年1次自費公假",AT7=0),"自費公假",IF(AND(MID(AU7,1,4)="3年1次",AT7=0,AS7=0),"核符，且前2年未補助",IF(AND(OR(MID(AU7,1,9)="1年1次16000",MID(AU7,1,9)="1年1次 8000",MID(AU7,1,9)="1年1次 4000",MID(AU7,1,9)="2年1次 4500"),AT7=0),"核符，且去年未補助",IF(AND(MID(AU7,11,1)="可",AT7>0,OR(MID(AU7,1,9)="1年1次16000",MID(AU7,1,9)="1年1次 8000",MID(AU7,1,9)="1年1次 4000")),"核符，但去年曾獲補助",IF(AND(MID(AU7,11,1)="不",AT7>0,OR(MID(AU7,1,9)="1年1次16000",MID(AU7,1,9)="1年1次 8000",MID(AU7,1,9)="1年1次 4000")),"核符","不符補助")))))) -> 不符補助 | AW7: =IF(AO7="","",IF(AV7="自費公假","自費公假",IF(OR(AV7="核符，且前2年未補助",AND(AV7="核符，且去年未補助",AU7="2年1次 4500，不可併去年")),VALUE(MID(AU7,5,5)),IF(AV7="不符補助",0,IF(MID(AU7,11,1)="不",MID(AU7,5,5)*2,IF(AND(MID(AU7,11,1)="可",AT7=0),MID(AU7,5,5)*2,VALUE(MID(AU7,5,5)))))))) -> 0 | AY7: 王一 | AZ7: =IF(AY7="","",IFERROR(AY$4-LEFT(VLOOKUP(AY7,$B$6:$D$1899,3,0),2)-1,"未建檔")) -> 60 | BA7: =IF(AY7="","",IF(IFERROR(VLOOKUP(AY7,$B$6:$D$505,2,0),"")="",0,VLOOKUP(AY7,$B$6:$Q$505,2,0))) -> 處長 | BD7: =IF(AY7="","",IF(IFERROR(VLOOKUP(AY7,AC$6:AM$505,11,0),"")="",0,VLOOKUP(AY7,AC$6:AM$505,11,0))) -> 16000 | BE7: =IF(AY7="","",IF(IFERROR(VLOOKUP(AY7,AN$6:AX$505,11,0),"")="",0,VLOOKUP(AY7,AN$6:AX$505,11,0))) -> 11 | BF7: 1年1次16000，可併去年 | BG7: =IF(AY7="","",IF(AND(BF7="2年1次自費公假",BE7=0),"自費公假",IF(AND(MID(BF7,1,4)="3年1次",BE7=0,BD7=0),"核符，且前2年未補助",IF(AND(OR(MID(BF7,1,9)="1年1次16000",MID(BF7,1,9)="1年1次 8000",MID(BF7,1,9)="1年1次 4000",MID(BF7,1,9)="2年1次 4500"),BE7=0),"核符，且去年未補助",IF(AND(MID(BF7,11,1)="可",BE7>0,OR(MID(BF7,1,9)="1年1次16000",MID(BF7,1,9)="1年1次 8000",MID(BF7,1,9)="1年1次 4000")),"核符，但去年曾獲補助",IF(AND(MID(BF7,11,1)="不",BE7>0,OR(MID(BF7,1,9)="1年1次16000",MID(BF7,1,9)="1年1次 8000",MID(BF7,1,9)="1年1次 4000")),"核符","不符補助")))))) -> 核符，但去年曾獲補助 | BH7: 16000 | BI7: 16000 | BJ7: 高五 | BK7: =IF(BJ7="","",IFERROR(BJ$4-LEFT(VLOOKUP(BJ7,$B$6:$D$1899,3,0),2)-1,"未建檔")) -> 55 | BL7: =IF(BJ7="","",IF(IFERROR(VLOOKUP(BJ7,$B$6:$D$505,2,0),"")="",0,VLOOKUP(BJ7,$B$6:$Q$505,2,0))) -> 科員 | BO7: =IF(BJ7="","",IF(IFERROR(VLOOKUP(BJ7,AN$6:AX$505,11,0),"")="",0,VLOOKUP(BJ7,AN$6:AX$505,11,0))) -> 0 | BP7: =IF(BJ7="","",IF(IFERROR(VLOOKUP(BJ7,AY$6:BI$505,11,0),"")="",0,VLOOKUP(BJ7,AY$6:BI$505,11,0))) -> 4000 | BQ7: 2年1次 4500，不可併去年 | BR7: =IF(BJ7="","",IF(AND(BQ7="2年1次自費公假",BP7=0),"自費公假",IF(AND(MID(BQ7,1,4)="3年1次",BP7=0,BO7=0),"核符，且前2年未補助",IF(AND(OR(MID(BQ7,1,9)="1年1次16000",MID(BQ7,1,9)="1年1次 8000",MID(BQ7,1,9)="1年1次 4000",MID(BQ7,1,9)="2年1次 4500"),BP7=0),"核符，且去年未補助",IF(AND(MID(BQ7,11,1)="可",BP7>0,OR(MID(BQ7,1,9)="1年1次16000",MID(BQ7,1,9)="1年1次 8000",MID(BQ7,1,9)="1年1次 4000")),"核符，但去年曾獲補助",IF(AND(MID(BQ7,11,1)="不",BP7>0,OR(MID(BQ7,1,9)="1年1次16000",MID(BQ7,1,9)="1年1次 8000",MID(BQ7,1,9)="1年1次 4000")),"核符","不符補助")))))) -> 不符補助 | BS7: =IF(BK7="","",IF(BR7="自費公假","自費公假",IF(OR(BR7="核符，且前2年未補助",AND(BR7="核符，且去年未補助",BQ7="2年1次 4500，不可併去年")),VALUE(MID(BQ7,5,5)),IF(BR7="不符補助",0,IF(MID(BQ7,11,1)="不",MID(BQ7,5,5)*2,IF(AND(MID(BQ7,11,1)="可",BP7=0),MID(BQ7,5,5)*2,VALUE(MID(BQ7,5,5)))))))) -> 0 | BU7: 王一 | BV7: =IF(BU7="","",IFERROR(BU$4-LEFT(VLOOKUP(BU7,$B$6:$D$1899,3,0),2)-1,"未建檔")) -> 62 | BW7: =IF(BU7="","",IF(IFERROR(VLOOKUP(BU7,$B$6:$D$505,2,0),"")="",0,VLOOKUP(BU7,$B$6:$Q$505,2,0))) -> 處長 | BZ7: =IF(BU7="","",IF(IFERROR(VLOOKUP(BU7,AY$6:BI$505,11,0),"")="",0,VLOOKUP(BU7,AY$6:BI$505,11,0))) -> 16000 | CA7: =IF(BU7="","",IF(IFERROR(VLOOKUP(BU7,BJ$6:BT$505,11,0),"")="",0,VLOOKUP(BU7,BJ$6:BT$505,11,0))) -> 11 | CB7: 1年1次16000，可併去年 | CC7: =IF(BU7="","",IF(AND(CB7="2年1次自費公假",CA7=0),"自費公假",IF(AND(MID(CB7,1,4)="3年1次",CA7=0,BZ7=0),"核符，且前2年未補助",IF(AND(OR(MID(CB7,1,9)="1年1次16000",MID(CB7,1,9)="1年1次 8000",MID(CB7,1,9)="1年1次 4000",MID(CB7,1,9)="2年1次 4500"),CA7=0),"核符，且去年未補助",IF(AND(MID(CB7,11,1)="可",CA7>0,OR(MID(CB7,1,9)="1年1次16000",MID(CB7,1,9)="1年1次 8000",MID(CB7,1,9)="1年1次 4000")),"核符，但去年曾獲補助",IF(AND(MID(CB7,11,1)="不",CA7>0,OR(MID(CB7,1,9)="1年1次16000",MID(CB7,1,9)="1年1次 8000",MID(CB7,1,9)="1年1次 4000")),"核符","不符補助")))))) -> 核符，但去年曾獲補助 | CD7: 16000 | CE7: 16000 | CF7: 高五 | CG7: =IF(CF7="","",IFERROR(CF$4-LEFT(VLOOKUP(CF7,$B$6:$D$1899,3,0),2)-1,"未建檔")) -> 57 | CH7: =IF(CF7="","",IF(IFERROR(VLOOKUP(CF7,$B$6:$D$505,2,0),"")="",0,VLOOKUP(CF7,$B$6:$Q$505,2,0))) -> 科員 | CK7: =IF(CF7="","",IF(IFERROR(VLOOKUP(CF7,BJ$6:BT$505,11,0),"")="",0,VLOOKUP(CF7,BJ$6:BT$505,11,0))) -> 0 | CL7: =IF(CF7="","",IF(IFERROR(VLOOKUP(CF7,BU$6:CE$505,11,0),"")="",0,VLOOKUP(CF7,BU$6:CE$505,11,0))) -> 4000 | CM7: 2年1次 4500，不可併去年 | CN7: =IF(CF7="","",IF(AND(CM7="2年1次自費公假",CL7=0),"自費公假",IF(AND(MID(CM7,1,4)="3年1次",CL7=0,CK7=0),"核符，且前2年未補助",IF(AND(OR(MID(CM7,1,9)="1年1次16000",MID(CM7,1,9)="1年1次 8000",MID(CM7,1,9)="1年1次 4000",MID(CM7,1,9)="2年1次 4500"),CL7=0),"核符，且去年未補助",IF(AND(MID(CM7,11,1)="可",CL7>0,OR(MID(CM7,1,9)="1年1次16000",MID(CM7,1,9)="1年1次 8000",MID(CM7,1,9)="1年1次 4000")),"核符，但去年曾獲補助",IF(AND(MID(CM7,11,1)="不",CL7>0,OR(MID(CM7,1,9)="1年1次16000",MID(CM7,1,9)="1年1次 8000",MID(CM7,1,9)="1年1次 4000")),"核符","不符補助")))))) -> 不符補助 | CO7: =IF(CG7="","",IF(CN7="自費公假","自費公假",IF(OR(CN7="核符，且前2年未補助",AND(CN7="核符，且去年未補助",CM7="2年1次 4500，不可併去年")),VALUE(MID(CM7,5,5)),IF(CN7="不符補助",0,IF(MID(CM7,11,1)="不",MID(CM7,5,5)*2,IF(AND(MID(CM7,11,1)="可",CL7=0),MID(CM7,5,5)*2,VALUE(MID(CM7,5,5)))))))) -> 0 | CQ7: 王一 | CR7: =IF(CQ7="","",IFERROR(CQ$4-LEFT(VLOOKUP(CQ7,$B$6:$D$1899,3,0),2)-1,"未建檔")) -> 64 | CS7: =IF(CQ7="","",IF(IFERROR(VLOOKUP(CQ7,$B$6:$D$505,2,0),"")="",0,VLOOKUP(CQ7,$B$6:$Q$505,2,0))) -> 處長 | CV7: =IF(CQ7="","",IF(IFERROR(VLOOKUP(CQ7,BU$6:CE$505,11,0),"")="",0,VLOOKUP(CQ7,BU$6:CE$505,11,0))) -> 16000 | CW7: =IF(CQ7="","",IF(IFERROR(VLOOKUP(CQ7,CF$6:CP$505,11,0),"")="",0,VLOOKUP(CQ7,CF$6:CP$505,11,0))) -> 11 | CX7: 1年1次16000，可併去年 | CY7: =IF(CQ7="","",IF(AND(CX7="2年1次自費公假",CW7=0),"自費公假",IF(AND(MID(CX7,1,4)="3年1次",CW7=0,CV7=0),"核符，且前2年未補助",IF(AND(OR(MID(CX7,1,9)="1年1次16000",MID(CX7,1,9)="1年1次 8000",MID(CX7,1,9)="1年1次 4000",MID(CX7,1,9)="2年1次 4500"),CW7=0),"核符，且去年未補助",IF(AND(MID(CX7,11,1)="可",CW7>0,OR(MID(CX7,1,9)="1年1次16000",MID(CX7,1,9)="1年1次 8000",MID(CX7,1,9)="1年1次 4000")),"核符，但去年曾獲補助",IF(AND(MID(CX7,11,1)="不",CW7>0,OR(MID(CX7,1,9)="1年1次16000",MID(CX7,1,9)="1年1次 8000",MID(CX7,1,9)="1年1次 4000")),"核符","不符補助")))))) -> 核符，但去年曾獲補助 | CZ7: 16000 | DA7: 16000 | DB7: 高五 | DC7: =IF(DB7="","",IFERROR(DB$4-LEFT(VLOOKUP(DB7,$B$6:$D$1899,3,0),2)-1,"未建檔")) -> 59 | DD7: =IF(DB7="","",IF(IFERROR(VLOOKUP(DB7,$B$6:$D$505,2,0),"")="",0,VLOOKUP(DB7,$B$6:$Q$505,2,0))) -> 科員 | DG7: =IF(DB7="","",IF(IFERROR(VLOOKUP(DB7,CF$6:CP$505,11,0),"")="",0,VLOOKUP(DB7,CF$6:CP$505,11,0))) -> 0 | DH7: =IF(DB7="","",IF(IFERROR(VLOOKUP(DB7,CQ$6:DA$505,11,0),"")="",0,VLOOKUP(DB7,CQ$6:DA$505,11,0))) -> 4000 | DI7: 2年1次 4500，不可併去年 | DJ7: =IF(DB7="","",IF(AND(DI7="2年1次自費公假",DH7=0),"自費公假",IF(AND(MID(DI7,1,4)="3年1次",DH7=0,DG7=0),"核符，且前2年未補助",IF(AND(OR(MID(DI7,1,9)="1年1次16000",MID(DI7,1,9)="1年1次 8000",MID(DI7,1,9)="1年1次 4000",MID(DI7,1,9)="2年1次 4500"),DH7=0),"核符，且去年未補助",IF(AND(MID(DI7,11,1)="可",DH7>0,OR(MID(DI7,1,9)="1年1次16000",MID(DI7,1,9)="1年1次 8000",MID(DI7,1,9)="1年1次 4000")),"核符，但去年曾獲補助",IF(AND(MID(DI7,11,1)="不",DH7>0,OR(MID(DI7,1,9)="1年1次16000",MID(DI7,1,9)="1年1次 8000",MID(DI7,1,9)="1年1次 4000")),"核符","不符補助")))))) -> 不符補助 | DK7: =IF(DC7="","",IF(DJ7="自費公假","自費公假",IF(OR(DJ7="核符，且前2年未補助",AND(DJ7="核符，且去年未補助",DI7="2年1次 4500，不可併去年")),VALUE(MID(DI7,5,5)),IF(DJ7="不符補助",0,IF(MID(DI7,11,1)="不",MID(DI7,5,5)*2,IF(AND(MID(DI7,11,1)="可",DH7=0),MID(DI7,5,5)*2,VALUE(MID(DI7,5,5)))))))) -> 0 | DM7: 王一 | DN7: =IF(DM7="","",IFERROR(DM$4-LEFT(VLOOKUP(DM7,$B$6:$D$1899,3,0),2)-1,"未建檔")) -> 66 | DO7: =IF(DM7="","",IF(IFERROR(VLOOKUP(DM7,$B$6:$D$505,2,0),"")="",0,VLOOKUP(DM7,$B$6:$Q$505,2,0))) -> 處長 | DR7: =IF(DM7="","",IF(IFERROR(VLOOKUP(DM7,CQ$6:DA$505,11,0),"")="",0,VLOOKUP(DM7,CQ$6:DA$505,11,0))) -> 16000 | DS7: =IF(DM7="","",IF(IFERROR(VLOOKUP(DM7,DB$6:DL$505,11,0),"")="",0,VLOOKUP(DM7,DB$6:DL$505,11,0))) -> 11 | DT7: 1年1次16000，可併去年 | DU7: =IF(DM7="","",IF(AND(DT7="2年1次自費公假",DS7=0),"自費公假",IF(AND(MID(DT7,1,4)="3年1次",DS7=0,DR7=0),"核符，且前2年未補助",IF(AND(OR(MID(DT7,1,9)="1年1次16000",MID(DT7,1,9)="1年1次 8000",MID(DT7,1,9)="1年1次 4000",MID(DT7,1,9)="2年1次 4500"),DS7=0),"核符，且去年未補助",IF(AND(MID(DT7,11,1)="可",DS7>0,OR(MID(DT7,1,9)="1年1次16000",MID(DT7,1,9)="1年1次 8000",MID(DT7,1,9)="1年1次 4000")),"核符，但去年曾獲補助",IF(AND(MID(DT7,11,1)="不",DS7>0,OR(MID(DT7,1,9)="1年1次16000",MID(DT7,1,9)="1年1次 8000",MID(DT7,1,9)="1年1次 4000")),"核符","不符補助")))))) -> 核符，但去年曾獲補助 | DV7: 16000 | DW7: 16000 | DX7: 高五 | DY7: =IF(DX7="","",IFERROR(DX$4-LEFT(VLOOKUP(DX7,$B$6:$D$1899,3,0),2)-1,"未建檔")) -> 61 | DZ7: =IF(DX7="","",IF(IFERROR(VLOOKUP(DX7,$B$6:$D$505,2,0),"")="",0,VLOOKUP(DX7,$B$6:$Q$505,2,0))) -> 科員 | EC7: =IF(DX7="","",IF(IFERROR(VLOOKUP(DX7,DB$6:DL$505,11,0),"")="",0,VLOOKUP(DX7,DB$6:DL$505,11,0))) -> 0 | ED7: =IF(DX7="","",IF(IFERROR(VLOOKUP(DX7,DM$6:DW$505,11,0),"")="",0,VLOOKUP(DX7,DM$6:DW$505,11,0))) -> 4000 | EE7: 2年1次 4500，不可併去年 | EF7: =IF(DX7="","",IF(AND(EE7="2年1次自費公假",ED7=0),"自費公假",IF(AND(MID(EE7,1,4)="3年1次",ED7=0,EC7=0),"核符，且前2年未補助",IF(AND(OR(MID(EE7,1,9)="1年1次16000",MID(EE7,1,9)="1年1次 8000",MID(EE7,1,9)="1年1次 4000",MID(EE7,1,9)="2年1次 4500"),ED7=0),"核符，且去年未補助",IF(AND(MID(EE7,11,1)="可",ED7>0,OR(MID(EE7,1,9)="1年1次16000",MID(EE7,1,9)="1年1次 8000",MID(EE7,1,9)="1年1次 4000")),"核符，但去年曾獲補助",IF(AND(MID(EE7,11,1)="不",ED7>0,OR(MID(EE7,1,9)="1年1次16000",MID(EE7,1,9)="1年1次 8000",MID(EE7,1,9)="1年1次 4000")),"核符","不符補助")))))) -> 不符補助 | EG7: =IF(DY7="","",IF(EF7="自費公假","自費公假",IF(OR(EF7="核符，且前2年未補助",AND(EF7="核符，且去年未補助",EE7="2年1次 4500，不可併去年")),VALUE(MID(EE7,5,5)),IF(EF7="不符補助",0,IF(MID(EE7,11,1)="不",MID(EE7,5,5)*2,IF(AND(MID(EE7,11,1)="可",ED7=0),MID(EE7,5,5)*2,VALUE(MID(EE7,5,5)))))))) -> 0
A8: 3 | B8: 張三 | C8: 科長 | D8: 511106 | G8: 柯七 | H8: 37 | I8: 1110629 | J8: 科員 | Q8: 自費公假 | R8: 陳十 | S8: 45 | T8: 1120409 | U8: 辦事員 | AB8: 6000 | AC8: 許二 | AD8: 56 | AE8: 副處長 | AH8: 0 | AI8: 32000 | AJ8: 1年1次16000，不可併去年 | AK8: 核符 | AL8: 32000 | AM8: 16000 | AN8: 侯九 | AO8: 47 | AP8: 辦事員 | AS8: 4000 | AT8: 0 | AU8: 2年1次 4500，不可併去年 | AV8: 核符，且去年未補助 | AW8: 4500 | AY8: 許二 | AZ8: 58 | BA8: 副處長 | BD8: 16000 | BE8: 0 | BF8: 1年1次16000，不可併去年 | BG8: 核符，且去年未補助 | BH8: 32000 | BI8: 16000 | BJ8: 侯九 | BK8: 49 | BL8: 辦事員 | BO8: 0 | BP8: 0 | BQ8: 2年1次 4500，不可併去年 | BR8: 核符，且去年未補助 | BS8: 4500 | BU8: 許二 | BV8: 60 | BW8: 副處長 | BZ8: 16000 | CA8: 0 | CB8: 1年1次16000，不可併去年 | CC8: 核符，且去年未補助 | CD8: 32000 | CE8: 16000 | CF8: 侯九 | CG8: 51 | CH8: 辦事員 | CK8: 0 | CL8: 0 | CM8: 2年1次 4500，不可併去年 | CN8: 核符，且去年未補助 | CO8: 4500 | CQ8: 許二 | CR8: 62 | CS8: 副處長 | CV8: 16000 | CW8: 0 | CX8: 1年1次16000，不可併去年 | CY8: 核符，且去年未補助 | CZ8: 32000 | DA8: 16000 | DB8: 侯九 | DC8: 53 | DD8: 辦事員 | DG8: 0 | DH8: 0 | DI8: 2年1次 4500，不可併去年 | DJ8: 核符，且去年未補助 | DK8: 4500 | DM8: 許二 | DN8: 64 | DO8: 副處長 | DR8: 16000 | DS8: 0 | DT8: 1年1次16000，不可併去年 | DU8: 核符，且去年未補助 | DV8: 32000 | DW8: 16000 | DX8: 侯九 | DY8: 55 | DZ8: 辦事員 | EC8: 0 | ED8: 0 | EE8: 2年1次 4500，不可併去年 | EF8: 核符，且去年未補助 | EG8: 4500
A9: 4 | B9: 高五 | C9: 科員 | D9: 600124 | Q9: 5000 | R9: 錢六 | S9: 45 | T9: 1120528 | U9: 科員 | AB9: 4500 | AC9: 林四 | AD9: 42 | AE9: 科員 | AH9: 0 | AI9: 0 | AJ9: 3年1次 3500，不可併去年 | AK9: 核符，且前2年未補助 | AL9: 3500 | AM9: 3500 | AN9: 董八 | AO9: 48 | AP9: 科員 | AS9: 0 | AT9: 4500 | AU9: 2年1次 4500，不可併去年 | AV9: 不符補助 | AW9: 0 | AY9: 林四 | AZ9: 44 | BA9: 科員 | BD9: 3500 | BE9: 0 | BF9: 3年1次 3500，不可併去年 | BG9: 不符補助 | BH9: 0 | BI9: 3500 | BJ9: 董八 | BK9: 50 | BL9: 科員 | BO9: 0 | BP9: 4500 | BQ9: 2年1次 4500，不可併去年 | BR9: 不符補助 | BS9: 0 | BU9: 林四 | BV9: 46 | BW9: 科員 | BZ9: 3500 | CA9: 0 | CB9: 3年1次 3500，不可併去年 | CC9: 不符補助 | CD9: 0 | CE9: 3500 | CF9: 董八 | CG9: 52 | CH9: 科員 | CK9: 0 | CL9: 4500 | CM9: 2年1次 4500，不可併去年 | CN9: 不符補助 | CO9: 0 | CQ9: 林四 | CR9: 48 | CS9: 科員 | CV9: 3500 | CW9: 0 | CX9: 3年1次 3500，不可併去年 | CY9: 不符補助 | CZ9: 0 | DA9: 3500 | DB9: 董八 | DC9: 54 | DD9: 科員 | DG9: 0 | DH9: 4500 | DI9: 2年1次 4500，不可併去年 | DJ9: 不符補助 | DK9: 0 | DM9: 林四 | DN9: 50 | DO9: 科員 | DR9: 3500 | DS9: 0 | DT9: 3年1次 3500，不可併去年 | DU9: 不符補助 | DV9: 0 | DW9: 3500 | DX9: 董八 | DY9: 56 | DZ9: 科員 | EC9: 0 | ED9: 4500 | EE9: 2年1次 4500，不可併去年 | EF9: 不符補助 | EG9: 0
A10: 5 | B10: 錢六 | C10: 科員 | D10: 661105 | Q10: 4500 | R10: 柯七 | S10: 38 | T10: 1120621 | U10: 科員 | AB10: 自費公假 | AC10: 董八 | AD10: 47 | AE10: 科員 | AH10: 4000 | AI10: 0 | AJ10: 2年1次 4500，不可併去年 | AK10: 核符，且去年未補助 | AL10: 4500 | AM10: 4500 | AN10: 許二 | AO10: 57 | AP10: 副處長 | AS10: 32000 | AT10: 16000 | AU10: 1年1次16000，不可併去年 | AV10: 核符 | AW10: 32000 | AY10: 董八 | AZ10: 49 | BA10: 科員 | BD10: 4500 | BE10: 0 | BF10: 2年1次 4500，不可併去年 | BG10: 核符，且去年未補助 | BH10: 4500 | BI10: 4500 | BJ10: 許二 | BK10: 59 | BL10: 副處長 | BO10: 0 | BP10: 16000 | BQ10: 1年1次16000，不可併去年 | BR10: 核符 | BS10: 32000 | BU10: 董八 | BV10: 51 | BW10: 科員 | BZ10: 4500 | CA10: 0 | CB10: 2年1次 4500，不可併去年 | CC10: 核符，且去年未補助 | CD10: 4500 | CE10: 4500 | CF10: 許二 | CG10: 61 | CH10: 副處長 | CK10: 0 | CL10: 16000 | CM10: 1年1次16000，不可併去年 | CN10: 核符 | CO10: 32000 | CQ10: 董八 | CR10: 53 | CS10: 科員 | CV10: 4500 | CW10: 0 | CX10: 2年1次 4500，不可併去年 | CY10: 核符，且去年未補助 | CZ10: 4500 | DA10: 4500 | DB10: 許二 | DC10: 63 | DD10: 副處長 | DG10: 0 | DH10: 16000 | DI10: 1年1次16000，不可併去年 | DJ10: 核符 | DK10: 32000 | DM10: 董八 | DN10: 55 | DO10: 科員 | DR10: 4500 | DS10: 0 | DT10: 2年1次 4500，不可併去年 | DU10: 核符，且去年未補助 | DV10: 4500 | DW10: 4500 | DX10: 許二 | DY10: 65 | DZ10: 副處長 | EC10: 0 | ED10: 16000 | EE10: 1年1次16000，不可併去年 | EF10: 核符 | EG10: 32000
A11: 6 | B11: 林四 | C11: 科員 | D11: 700505 | Q11: 4000 | R11: 許二 | S11: 55 | T11: 1120701 | U11: 副處長 | AB11: 32000 | AC11: 侯九 | AD11: 46 | AE11: 辦事員 | AH11: 0 | AI11: 4000 | AJ11: 2年1次 4500，不可併去年 | AK11: 不符補助 | AL11: 0 | AM11: 0 | AN11: 林四 | AO11: 43 | AP11: 科員 | AS11: 0 | AT11: 3500 | AU11: 3年1次 3500，不可併去年 | AV11: 不符補助 | AW11: 0 | AY11: 侯九 | AZ11: 48 | BA11: 辦事員 | BD11: 0 | BE11: 0 | BF11: 2年1次 4500，不可併去年 | BG11: 核符，且去年未補助 | BH11: 4500 | BI11: 0 | BJ11: 林四 | BK11: 45 | BL11: 科員 | BO11: 0 | BP11: 3500 | BQ11: 3年1次 3500，不可併去年 | BR11: 不符補助 | BS11: 0 | BU11: 侯九 | BV11: 50 | BW11: 辦事員 | BZ11: 0 | CA11: 0 | CB11: 2年1次 4500，不可併去年 | CC11: 核符，且去年未補助 | CD11: 4500 | CE11: 0 | CF11: 林四 | CG11: 47 | CH11: 科員 | CK11: 0 | CL11: 3500 | CM11: 3年1次 3500，不可併去年 | CN11: 不符補助 | CO11: 0 | CQ11: 侯九 | CR11: 52 | CS11: 辦事員 | CV11: 0 | CW11: 0 | CX11: 2年1次 4500，不可併去年 | CY11: 核符，且去年未補助 | CZ11: 4500 | DA11: 0 | DB11: 林四 | DC11: 49 | DD11: 科員 | DG11: 0 | DH11: 3500 | DI11: 3年1次 3500，不可併去年 | DJ11: 不符補助 | DK11: 0 | DM11: 侯九 | DN11: 54 | DO11: 辦事員 | DR11: 0 | DS11: 0 | DT11: 2年1次 4500，不可併去年 | DU11: 核符，且去年未補助 | DV11: 4500 | DW11: 0 | DX11: 林四 | DY11: 51 | DZ11: 科員 | EC11: 0 | ED11: 3500 | EE11: 3年1次 3500，不可併去年 | EF11: 不符補助 | EG11: 0
A12: 7 | B12: 柯七 | C12: 科員 | D12: 730522 | Q12: 4500 | R12: 侯九 | S12: 45 | T12: 1121125 | U12: 辦事員 | AB12: 4000 | AC12: 高五 | AD12: 52 | AE12: 科員 | AH12: 0 | AI12: 0 | AJ12: 1年1次 4000，可併去年 | AK12: 核符，且去年未補助 | AL12: 8000 | AM12: 4000 | AY12: 高五 | AZ12: 54 | BA12: 科員 | BD12: 4000 | BE12: 0 | BF12: 1年1次 4000，可併去年 | BG12: 核符，且去年未補助 | BH12: 8000 | BI12: 4000 | BU12: 高五 | BV12: 56 | BW12: 科員 | BZ12: 4000 | CA12: 0 | CB12: 1年1次 4000，可併去年 | CC12: 核符，且去年未補助 | CD12: 8000 | CE12: 4000 | CQ12: 高五 | CR12: 58 | CS12: 科員 | CV12: 4000 | CW12: 0 | CX12: 1年1次 4000，可併去年 | CY12: 核符，且去年未補助 | CZ12: 8000 | DA12: 4000 | DM12: 高五 | DN12: 60 | DO12: 科員 | DR12: 4000 | DS12: 0 | DT12: 1年1次 4000，可併去年 | DU12: 核符，且去年未補助 | DV12: 8000 | DW12: 4000
A13: 8 | B13: 董八 | C13: 科員 | D13: 650215 | AC13: 錢六 | AD13: 46 | AE13: 科員 | AH13: 0 | AI13: 4500 | AJ13: 2年1次 4500，不可併去年 | AK13: 不符補助 | AL13: 0 | AM13: 0 | AY13: 錢六 | AZ13: 48 | BA13: 科員 | BD13: 0 | BE13: 0 | BF13: 2年1次 4500，不可併去年 | BG13: 核符，且去年未補助 | BH13: 4500 | BI13: 0 | BU13: 錢六 | BV13: 50 | BW13: 科員 | BZ13: 0 | CA13: 0 | CB13: 2年1次 4500，不可併去年 | CC13: 核符，且去年未補助 | CD13: 4500 | CE13: 0 | CQ13: 錢六 | CR13: 52 | CS13: 科員 | CV13: 0 | CW13: 0 | CX13: 2年1次 4500，不可併去年 | CY13: 核符，且去年未補助 | CZ13: 4500 | DA13: 0 | DM13: 錢六 | DN13: 54 | DO13: 科員 | DR13: 0 | DS13: 0 | DT13: 2年1次 4500，不可併去年 | DU13: 核符，且去年未補助 | DV13: 4500 | DW13: 0
A14: 9 | B14: 侯九 | C14: 辦事員 | D14: 661211 | AC14: 張三 | AD14: 61 | AE14: 科長 | AH14: 0 | AI14: 4500 | AJ14: 1年1次 8000，不可併去年 | AK14: 核符 | AL14: 16000 | AM14: 0 | AY14: 張三 | AZ14: 63 | BA14: 科長 | BD14: 0 | BE14: 0 | BF14: 1年1次 8000，不可併去年 | BG14: 核符，且去年未補助 | BH14: 16000 | BI14: 0 | BU14: 張三 | BV14: 65 | BW14: 科長 | BZ14: 0 | CA14: 0 | CB14: 1年1次 8000，不可併去年 | CC14: 核符，且去年未補助 | CD14: 16000 | CE14: 0 | CQ14: 張三 | CR14: 67 | CS14: 科長 | CV14: 0 | CW14: 0 | CX14: 1年1次 8000，不可併去年 | CY14: 核符，且去年未補助 | CZ14: 16000 | DA14: 0 | DM14: 張三 | DN14: 69 | DO14: 科長 | DR14: 0 | DS14: 0 | DT14: 1年1次 8000，不可併去年 | DU14: 核符，且去年未補助 | DV14: 16000 | DW14: 0
A15: 10 | B15: 陳十 | C15: 辦事員 | D15: 661225 | AJ15: =IF(AC15="","",VLOOKUP(AC15,$C$6:$F$505,4,0)) ->  | AU15: =IF(AN15="","",VLOOKUP(AN15,$C$6:$F$505,4,0)) ->  | BF15: =IF(AY15="","",VLOOKUP(AY15,$C$6:$F$505,4,0)) ->  | BQ15: =IF(BJ15="","",VLOOKUP(BJ15,$C$6:$F$505,4,0)) ->  | CB15: =IF(BU15="","",VLOOKUP(BU15,$C$6:$F$505,4,0)) ->  | CM15: =IF(CF15="","",VLOOKUP(CF15,$C$6:$F$505,4,0)) ->  | CX15: =IF(CQ15="","",VLOOKUP(CQ15,$C$6:$F$505,4,0)) ->  | DI15: =IF(DB15="","",VLOOKUP(DB15,$C$6:$F$505,4,0)) ->  | DT15: =IF(DM15="","",VLOOKUP(DM15,$C$6:$F$505,4,0)) ->  | EE15: =IF(DX15="","",VLOOKUP(DX15,$C$6:$F$505,4,0)) -> 
A16: 11 | E16: =IF(C16="","",$AC$4-LEFT(D16,2)-1) -> 
A17: 12
A18: 13
A19: 14
A20: 15
A21: 16
A22: 17
A23: 18
A24: 19
A25: 20
A26: 21
A27: 22 | BF27: =IF(AY27="","",VLOOKUP(AY27,$C$6:$F$505,4,0)) ->  | CB27: =IF(BU27="","",VLOOKUP(BU27,$C$6:$F$505,4,0)) ->  | CX27: =IF(CQ27="","",VLOOKUP(CQ27,$C$6:$F$505,4,0)) ->  | DT27: =IF(DM27="","",VLOOKUP(DM27,$C$6:$F$505,4,0)) -> 
A28: 23
A29: 24
A30: 25
A31: 26
A32: 27
A33: 28
A34: 29
A35: 30
A36: 31
A37: 32
A38: 33
A39: 34
A40: 35
A41: 36
A42: 37
A43: 38
A44: 39
A45: 40
A46: 41
A47: 42 | AJ47: =IF(AC47="","",VLOOKUP(AC47,$C$6:$F$505,4,0)) -> 
A48: 43
A49: 44
A50: 45
A51: 46
A52: 47
A53: 48
A54: 49
A55: 50
A56: 51
A57: 52
A58: 53
A59: 54
A60: 55
A61: 56
A62: 57
A63: 58
A64: 59
A65: 60
A66: 61
A67: 62
A68: 63
A69: 64
A70: 65 | E70: =IF(C70="","",$AC$4-LEFT(D70,2)-1) ->  | AL70: =IF(AD70="","",IF(AK70="自費公假","自費公假",IF(OR(AK70="核符，且前2年未補助",AND(AK70="核符，且去年未補助",AJ70="2年1次 4500，不可併去年")),VALUE(MID(AJ70,5,5)),IF(AK70="不符補助",0,IF(MID(AJ70,11,1)="不",MID(AJ70,5,5)*2,IF(AND(MID(AJ70,11,1)="可",AI70=0),MID(AJ70,5,5)*2,VALUE(MID(AJ70,5,5)))))))) ->  | BH70: =IF(AZ70="","",IF(BG70="自費公假","自費公假",IF(OR(BG70="核符，且前2年未補助",AND(BG70="核符，且去年未補助",BF70="2年1次 4500，不可併去年")),VALUE(MID(BF70,5,5)),IF(BG70="不符補助",0,IF(MID(BF70,11,1)="不",MID(BF70,5,5)*2,IF(AND(MID(BF70,11,1)="可",BE70=0),MID(BF70,5,5)*2,VALUE(MID(BF70,5,5)))))))) ->  | CD70: =IF(BV70="","",IF(CC70="自費公假","自費公假",IF(OR(CC70="核符，且前2年未補助",AND(CC70="核符，且去年未補助",CB70="2年1次 4500，不可併去年")),VALUE(MID(CB70,5,5)),IF(CC70="不符補助",0,IF(MID(CB70,11,1)="不",MID(CB70,5,5)*2,IF(AND(MID(CB70,11,1)="可",CA70=0),MID(CB70,5,5)*2,VALUE(MID(CB70,5,5)))))))) ->  | CZ70: =IF(CR70="","",IF(CY70="自費公假","自費公假",IF(OR(CY70="核符，且前2年未補助",AND(CY70="核符，且去年未補助",CX70="2年1次 4500，不可併去年")),VALUE(MID(CX70,5,5)),IF(CY70="不符補助",0,IF(MID(CX70,11,1)="不",MID(CX70,5,5)*2,IF(AND(MID(CX70,11,1)="可",CW70=0),MID(CX70,5,5)*2,VALUE(MID(CX70,5,5)))))))) ->  | DV70: =IF(DN70="","",IF(DU70="自費公假","自費公假",IF(OR(DU70="核符，且前2年未補助",AND(DU70="核符，且去年未補助",DT70="2年1次 4500，不可併去年")),VALUE(MID(DT70,5,5)),IF(DU70="不符補助",0,IF(MID(DT70,11,1)="不",MID(DT70,5,5)*2,IF(AND(MID(DT70,11,1)="可",DS70=0),MID(DT70,5,5)*2,VALUE(MID(DT70,5,5)))))))) -> 
A71: 66 | H71: =IF(G71="","",IFERROR(G$4-LEFT(VLOOKUP(G71,$B$6:$D$1899,3,0),2)-1,"未建檔")) ->  | J71: =IF(G71="","",IF(IFERROR(VLOOKUP(G71,$B$6:$D$505,2,0),"")="",0,VLOOKUP(G71,$B$6:$Q$505,2,0))) ->  | S71: =IF(R71="","",IFERROR(R$4-LEFT(VLOOKUP(R71,$B$6:$D$1899,3,0),2)-1,"未建檔")) ->  | U71: =IF(R71="","",IF(IFERROR(VLOOKUP(R71,$B$6:$D$505,2,0),"")="",0,VLOOKUP(R71,$B$6:$Q$505,2,0))) ->  | AD71: =IF(AC71="","",IFERROR(AC$4-LEFT(VLOOKUP(AC71,$B$6:$D$1899,3,0),2)-1,"未建檔")) ->  | AE71: =IF(AC71="","",IF(IFERROR(VLOOKUP(AC71,$B$6:$D$505,2,0),"")="",0,VLOOKUP(AC71,$B$6:$Q$505,2,0))) ->  | AH71: =IF(AC71="","",IF(IFERROR(VLOOKUP(AC71,G$6:Q$505,11,0),"")="",0,VLOOKUP(AC71,G$6:Q$505,11,0))) ->  | AI71: =IF(AC71="","",IF(IFERROR(VLOOKUP(AC71,R$6:AB$505,11,0),"")="",0,VLOOKUP(AC71,R$6:AB$505,11,0))) ->  | AJ71: =IF(AC71="","",VLOOKUP(AC71,$C$6:$F$505,4,0)) ->  | AK71: =IF(AC71="","",IF(AND(AJ71="2年1次自費公假",AI71=0),"自費公假",IF(AND(MID(AJ71,1,4)="3年1次",AI71=0,AH71=0),"核符，且前2年未補助",IF(AND(OR(MID(AJ71,1,9)="1年1次16000",MID(AJ71,1,9)="1年1次 8000",MID(AJ71,1,9)="1年1次 4000",MID(AJ71,1,9)="2年1次 4500"),AI71=0),"核符，且去年未補助",IF(AND(MID(AJ71,11,1)="可",AI71>0,OR(MID(AJ71,1,9)="1年1次16000",MID(AJ71,1,9)="1年1次 8000",MID(AJ71,1,9)="1年1次 4000")),"核符，但去年曾獲補助",IF(AND(MID(AJ71,11,1)="不",AI71>0,OR(MID(AJ71,1,9)="1年1次16000",MID(AJ71,1,9)="1年1次 8000",MID(AJ71,1,9)="1年1次 4000")),"核符","不符補助")))))) ->  | AO71: =IF(AN71="","",IFERROR(AN$4-LEFT(VLOOKUP(AN71,$B$6:$D$1899,3,0),2)-1,"未建檔")) ->  | AP71: =IF(AN71="","",IF(IFERROR(VLOOKUP(AN71,$B$6:$D$505,2,0),"")="",0,VLOOKUP(AN71,$B$6:$Q$505,2,0))) ->  | AS71: =IF(AN71="","",IF(IFERROR(VLOOKUP(AN71,R$6:AB$505,11,0),"")="",0,VLOOKUP(AN71,R$6:AB$505,11,0))) ->  | AT71: =IF(AN71="","",IF(IFERROR(VLOOKUP(AN71,AC$6:AM$505,11,0),"")="",0,VLOOKUP(AN71,AC$6:AM$505,11,0))) ->  | AV71: =IF(AN71="","",IF(AND(AU71="2年1次自費公假",AT71=0),"自費公假",IF(AND(MID(AU71,1,4)="3年1次",AT71=0,AS71=0),"核符，且前2年未補助",IF(AND(OR(MID(AU71,1,9)="1年1次16000",MID(AU71,1,9)="1年1次 8000",MID(AU71,1,9)="1年1次 4000",MID(AU71,1,9)="2年1次 4500"),AT71=0),"核符，且去年未補助",IF(AND(MID(AU71,11,1)="可",AT71>0,OR(MID(AU71,1,9)="1年1次16000",MID(AU71,1,9)="1年1次 8000",MID(AU71,1,9)="1年1次 4000")),"核符，但去年曾獲補助",IF(AND(MID(AU71,11,1)="不",AT71>0,OR(MID(AU71,1,9)="1年1次16000",MID(AU71,1,9)="1年1次 8000",MID(AU71,1,9)="1年1次 4000")),"核符","不符補助")))))) ->  | AW71: =IF(AO71="","",IF(AV71="自費公假","自費公假",IF(OR(AV71="核符，且前2年未補助",AND(AV71="核符，且去年未補助",AU71="2年1次 4500，不可併去年")),VALUE(MID(AU71,5,5)),IF(AV71="不符補助",0,IF(MID(AU71,11,1)="不",MID(AU71,5,5)*2,IF(AND(MID(AU71,11,1)="可",AT71=0),MID(AU71,5,5)*2,VALUE(MID(AU71,5,5)))))))) ->  | AZ71: =IF(AY71="","",IFERROR(AY$4-LEFT(VLOOKUP(AY71,$B$6:$D$1899,3,0),2)-1,"未建檔")) ->  | BA71: =IF(AY71="","",IF(IFERROR(VLOOKUP(AY71,$B$6:$D$505,2,0),"")="",0,VLOOKUP(AY71,$B$6:$Q$505,2,0))) ->  | BD71: =IF(AY71="","",IF(IFERROR(VLOOKUP(AY71,AC$6:AM$505,11,0),"")="",0,VLOOKUP(AY71,AC$6:AM$505,11,0))) ->  | BE71: =IF(AY71="","",IF(IFERROR(VLOOKUP(AY71,AN$6:AX$505,11,0),"")="",0,VLOOKUP(AY71,AN$6:AX$505,11,0))) ->  | BG71: =IF(AY71="","",IF(AND(BF71="2年1次自費公假",BE71=0),"自費公假",IF(AND(MID(BF71,1,4)="3年1次",BE71=0,BD71=0),"核符，且前2年未補助",IF(AND(OR(MID(BF71,1,9)="1年1次16000",MID(BF71,1,9)="1年1次 8000",MID(BF71,1,9)="1年1次 4000",MID(BF71,1,9)="2年1次 4500"),BE71=0),"核符，且去年未補助",IF(AND(MID(BF71,11,1)="可",BE71>0,OR(MID(BF71,1,9)="1年1次16000",MID(BF71,1,9)="1年1次 8000",MID(BF71,1,9)="1年1次 4000")),"核符，但去年曾獲補助",IF(AND(MID(BF71,11,1)="不",BE71>0,OR(MID(BF71,1,9)="1年1次16000",MID(BF71,1,9)="1年1次 8000",MID(BF71,1,9)="1年1次 4000")),"核符","不符補助")))))) ->  | BK71: =IF(BJ71="","",IFERROR(BJ$4-LEFT(VLOOKUP(BJ71,$B$6:$D$1899,3,0),2)-1,"未建檔")) ->  | BL71: =IF(BJ71="","",IF(IFERROR(VLOOKUP(BJ71,$B$6:$D$505,2,0),"")="",0,VLOOKUP(BJ71,$B$6:$Q$505,2,0))) ->  | BO71: =IF(BJ71="","",IF(IFERROR(VLOOKUP(BJ71,AN$6:AX$505,11,0),"")="",0,VLOOKUP(BJ71,AN$6:AX$505,11,0))) ->  | BP71: =IF(BJ71="","",IF(IFERROR(VLOOKUP(BJ71,AY$6:BI$505,11,0),"")="",0,VLOOKUP(BJ71,AY$6:BI$505,11,0))) ->  | BR71: =IF(BJ71="","",IF(AND(BQ71="2年1次自費公假",BP71=0),"自費公假",IF(AND(MID(BQ71,1,4)="3年1次",BP71=0,BO71=0),"核符，且前2年未補助",IF(AND(OR(MID(BQ71,1,9)="1年1次16000",MID(BQ71,1,9)="1年1次 8000",MID(BQ71,1,9)="1年1次 4000",MID(BQ71,1,9)="2年1次 4500"),BP71=0),"核符，且去年未補助",IF(AND(MID(BQ71,11,1)="可",BP71>0,OR(MID(BQ71,1,9)="1年1次16000",MID(BQ71,1,9)="1年1次 8000",MID(BQ71,1,9)="1年1次 4000")),"核符，但去年曾獲補助",IF(AND(MID(BQ71,11,1)="不",BP71>0,OR(MID(BQ71,1,9)="1年1次16000",MID(BQ71,1,9)="1年1次 8000",MID(BQ71,1,9)="1年1次 4000")),"核符","不符補助")))))) ->  | BS71: =IF(BK71="","",IF(BR71="自費公假","自費公假",IF(OR(BR71="核符，且前2年未補助",AND(BR71="核符，且去年未補助",BQ71="2年1次 4500，不可併去年")),VALUE(MID(BQ71,5,5)),IF(BR71="不符補助",0,IF(MID(BQ71,11,1)="不",MID(BQ71,5,5)*2,IF(AND(MID(BQ71,11,1)="可",BP71=0),MID(BQ71,5,5)*2,VALUE(MID(BQ71,5,5)))))))) ->  | BV71: =IF(BU71="","",IFERROR(BU$4-LEFT(VLOOKUP(BU71,$B$6:$D$1899,3,0),2)-1,"未建檔")) ->  | BW71: =IF(BU71="","",IF(IFERROR(VLOOKUP(BU71,$B$6:$D$505,2,0),"")="",0,VLOOKUP(BU71,$B$6:$Q$505,2,0))) ->  | BZ71: =IF(BU71="","",IF(IFERROR(VLOOKUP(BU71,AY$6:BI$505,11,0),"")="",0,VLOOKUP(BU71,AY$6:BI$505,11,0))) ->  | CA71: =IF(BU71="","",IF(IFERROR(VLOOKUP(BU71,BJ$6:BT$505,11,0),"")="",0,VLOOKUP(BU71,BJ$6:BT$505,11,0))) ->  | CC71: =IF(BU71="","",IF(AND(CB71="2年1次自費公假",CA71=0),"自費公假",IF(AND(MID(CB71,1,4)="3年1次",CA71=0,BZ71=0),"核符，且前2年未補助",IF(AND(OR(MID(CB71,1,9)="1年1次16000",MID(CB71,1,9)="1年1次 8000",MID(CB71,1,9)="1年1次 4000",MID(CB71,1,9)="2年1次 4500"),CA71=0),"核符，且去年未補助",IF(AND(MID(CB71,11,1)="可",CA71>0,OR(MID(CB71,1,9)="1年1次16000",MID(CB71,1,9)="1年1次 8000",MID(CB71,1,9)="1年1次 4000")),"核符，但去年曾獲補助",IF(AND(MID(CB71,11,1)="不",CA71>0,OR(MID(CB71,1,9)="1年1次16000",MID(CB71,1,9)="1年1次 8000",MID(CB71,1,9)="1年1次 4000")),"核符","不符補助")))))) ->  | CG71: =IF(CF71="","",IFERROR(CF$4-LEFT(VLOOKUP(CF71,$B$6:$D$1899,3,0),2)-1,"未建檔")) ->  | CH71: =IF(CF71="","",IF(IFERROR(VLOOKUP(CF71,$B$6:$D$505,2,0),"")="",0,VLOOKUP(CF71,$B$6:$Q$505,2,0))) ->  | CK71: =IF(CF71="","",IF(IFERROR(VLOOKUP(CF71,BJ$6:BT$505,11,0),"")="",0,VLOOKUP(CF71,BJ$6:BT$505,11,0))) ->  | CL71: =IF(CF71="","",IF(IFERROR(VLOOKUP(CF71,BU$6:CE$505,11,0),"")="",0,VLOOKUP(CF71,BU$6:CE$505,11,0))) ->  | CN71: =IF(CF71="","",IF(AND(CM71="2年1次自費公假",CL71=0),"自費公假",IF(AND(MID(CM71,1,4)="3年1次",CL71=0,CK71=0),"核符，且前2年未補助",IF(AND(OR(MID(CM71,1,9)="1年1次16000",MID(CM71,1,9)="1年1次 8000",MID(CM71,1,9)="1年1次 4000",MID(CM71,1,9)="2年1次 4500"),CL71=0),"核符，且去年未補助",IF(AND(MID(CM71,11,1)="可",CL71>0,OR(MID(CM71,1,9)="1年1次16000",MID(CM71,1,9)="1年1次 8000",MID(CM71,1,9)="1年1次 4000")),"核符，但去年曾獲補助",IF(AND(MID(CM71,11,1)="不",CL71>0,OR(MID(CM71,1,9)="1年1次16000",MID(CM71,1,9)="1年1次 8000",MID(CM71,1,9)="1年1次 4000")),"核符","不符補助")))))) ->  | CO71: =IF(CG71="","",IF(CN71="自費公假","自費公假",IF(OR(CN71="核符，且前2年未補助",AND(CN71="核符，且去年未補助",CM71="2年1次 4500，不可併去年")),VALUE(MID(CM71,5,5)),IF(CN71="不符補助",0,IF(MID(CM71,11,1)="不",MID(CM71,5,5)*2,IF(AND(MID(CM71,11,1)="可",CL71=0),MID(CM71,5,5)*2,VALUE(MID(CM71,5,5)))))))) ->  | CR71: =IF(CQ71="","",IFERROR(CQ$4-LEFT(VLOOKUP(CQ71,$B$6:$D$1899,3,0),2)-1,"未建檔")) ->  | CS71: =IF(CQ71="","",IF(IFERROR(VLOOKUP(CQ71,$B$6:$D$505,2,0),"")="",0,VLOOKUP(CQ71,$B$6:$Q$505,2,0))) ->  | CV71: =IF(CQ71="","",IF(IFERROR(VLOOKUP(CQ71,BU$6:CE$505,11,0),"")="",0,VLOOKUP(CQ71,BU$6:CE$505,11,0))) ->  | CW71: =IF(CQ71="","",IF(IFERROR(VLOOKUP(CQ71,CF$6:CP$505,11,0),"")="",0,VLOOKUP(CQ71,CF$6:CP$505,11,0))) ->  | CY71: =IF(CQ71="","",IF(AND(CX71="2年1次自費公假",CW71=0),"自費公假",IF(AND(MID(CX71,1,4)="3年1次",CW71=0,CV71=0),"核符，且前2年未補助",IF(AND(OR(MID(CX71,1,9)="1年1次16000",MID(CX71,1,9)="1年1次 8000",MID(CX71,1,9)="1年1次 4000",MID(CX71,1,9)="2年1次 4500"),CW71=0),"核符，且去年未補助",IF(AND(MID(CX71,11,1)="可",CW71>0,OR(MID(CX71,1,9)="1年1次16000",MID(CX71,1,9)="1年1次 8000",MID(CX71,1,9)="1年1次 4000")),"核符，但去年曾獲補助",IF(AND(MID(CX71,11,1)="不",CW71>0,OR(MID(CX71,1,9)="1年1次16000",MID(CX71,1,9)="1年1次 8000",MID(CX71,1,9)="1年1次 4000")),"核符","不符補助")))))) ->  | DC71: =IF(DB71="","",IFERROR(DB$4-LEFT(VLOOKUP(DB71,$B$6:$D$1899,3,0),2)-1,"未建檔")) ->  | DD71: =IF(DB71="","",IF(IFERROR(VLOOKUP(DB71,$B$6:$D$505,2,0),"")="",0,VLOOKUP(DB71,$B$6:$Q$505,2,0))) ->  | DG71: =IF(DB71="","",IF(IFERROR(VLOOKUP(DB71,CF$6:CP$505,11,0),"")="",0,VLOOKUP(DB71,CF$6:CP$505,11,0))) ->  | DH71: =IF(DB71="","",IF(IFERROR(VLOOKUP(DB71,CQ$6:DA$505,11,0),"")="",0,VLOOKUP(DB71,CQ$6:DA$505,11,0))) ->  | DJ71: =IF(DB71="","",IF(AND(DI71="2年1次自費公假",DH71=0),"自費公假",IF(AND(MID(DI71,1,4)="3年1次",DH71=0,DG71=0),"核符，且前2年未補助",IF(AND(OR(MID(DI71,1,9)="1年1次16000",MID(DI71,1,9)="1年1次 8000",MID(DI71,1,9)="1年1次 4000",MID(DI71,1,9)="2年1次 4500"),DH71=0),"核符，且去年未補助",IF(AND(MID(DI71,11,1)="可",DH71>0,OR(MID(DI71,1,9)="1年1次16000",MID(DI71,1,9)="1年1次 8000",MID(DI71,1,9)="1年1次 4000")),"核符，但去年曾獲補助",IF(AND(MID(DI71,11,1)="不",DH71>0,OR(MID(DI71,1,9)="1年1次16000",MID(DI71,1,9)="1年1次 8000",MID(DI71,1,9)="1年1次 4000")),"核符","不符補助")))))) ->  | DK71: =IF(DC71="","",IF(DJ71="自費公假","自費公假",IF(OR(DJ71="核符，且前2年未補助",AND(DJ71="核符，且去年未補助",DI71="2年1次 4500，不可併去年")),VALUE(MID(DI71,5,5)),IF(DJ71="不符補助",0,IF(MID(DI71,11,1)="不",MID(DI71,5,5)*2,IF(AND(MID(DI71,11,1)="可",DH71=0),MID(DI71,5,5)*2,VALUE(MID(DI71,5,5)))))))) ->  | DN71: =IF(DM71="","",IFERROR(DM$4-LEFT(VLOOKUP(DM71,$B$6:$D$1899,3,0),2)-1,"未建檔")) ->  | DO71: =IF(DM71="","",IF(IFERROR(VLOOKUP(DM71,$B$6:$D$505,2,0),"")="",0,VLOOKUP(DM71,$B$6:$Q$505,2,0))) ->  | DR71: =IF(DM71="","",IF(IFERROR(VLOOKUP(DM71,CQ$6:DA$505,11,0),"")="",0,VLOOKUP(DM71,CQ$6:DA$505,11,0))) ->  | DS71: =IF(DM71="","",IF(IFERROR(VLOOKUP(DM71,DB$6:DL$505,11,0),"")="",0,VLOOKUP(DM71,DB$6:DL$505,11,0))) ->  | DU71: =IF(DM71="","",IF(AND(DT71="2年1次自費公假",DS71=0),"自費公假",IF(AND(MID(DT71,1,4)="3年1次",DS71=0,DR71=0),"核符，且前2年未補助",IF(AND(OR(MID(DT71,1,9)="1年1次16000",MID(DT71,1,9)="1年1次 8000",MID(DT71,1,9)="1年1次 4000",MID(DT71,1,9)="2年1次 4500"),DS71=0),"核符，且去年未補助",IF(AND(MID(DT71,11,1)="可",DS71>0,OR(MID(DT71,1,9)="1年1次16000",MID(DT71,1,9)="1年1次 8000",MID(DT71,1,9)="1年1次 4000")),"核符，但去年曾獲補助",IF(AND(MID(DT71,11,1)="不",DS71>0,OR(MID(DT71,1,9)="1年1次16000",MID(DT71,1,9)="1年1次 8000",MID(DT71,1,9)="1年1次 4000")),"核符","不符補助")))))) ->  | DY71: =IF(DX71="","",IFERROR(DX$4-LEFT(VLOOKUP(DX71,$B$6:$D$1899,3,0),2)-1,"未建檔")) ->  | DZ71: =IF(DX71="","",IF(IFERROR(VLOOKUP(DX71,$B$6:$D$505,2,0),"")="",0,VLOOKUP(DX71,$B$6:$Q$505,2,0))) ->  | EC71: =IF(DX71="","",IF(IFERROR(VLOOKUP(DX71,DB$6:DL$505,11,0),"")="",0,VLOOKUP(DX71,DB$6:DL$505,11,0))) ->  | ED71: =IF(DX71="","",IF(IFERROR(VLOOKUP(DX71,DM$6:DW$505,11,0),"")="",0,VLOOKUP(DX71,DM$6:DW$505,11,0))) ->  | EF71: =IF(DX71="","",IF(AND(EE71="2年1次自費公假",ED71=0),"自費公假",IF(AND(MID(EE71,1,4)="3年1次",ED71=0,EC71=0),"核符，且前2年未補助",IF(AND(OR(MID(EE71,1,9)="1年1次16000",MID(EE71,1,9)="1年1次 8000",MID(EE71,1,9)="1年1次 4000",MID(EE71,1,9)="2年1次 4500"),ED71=0),"核符，且去年未補助",IF(AND(MID(EE71,11,1)="可",ED71>0,OR(MID(EE71,1,9)="1年1次16000",MID(EE71,1,9)="1年1次 8000",MID(EE71,1,9)="1年1次 4000")),"核符，但去年曾獲補助",IF(AND(MID(EE71,11,1)="不",ED71>0,OR(MID(EE71,1,9)="1年1次16000",MID(EE71,1,9)="1年1次 8000",MID(EE71,1,9)="1年1次 4000")),"核符","不符補助")))))) ->  | EG71: =IF(DY71="","",IF(EF71="自費公假","自費公假",IF(OR(EF71="核符，且前2年未補助",AND(EF71="核符，且去年未補助",EE71="2年1次 4500，不可併去年")),VALUE(MID(EE71,5,5)),IF(EF71="不符補助",0,IF(MID(EE71,11,1)="不",MID(EE71,5,5)*2,IF(AND(MID(EE71,11,1)="可",ED71=0),MID(EE71,5,5)*2,VALUE(MID(EE71,5,5)))))))) -> 
A72: 67
A73: 68
A74: 69
A75: 70
A76: 71
A77: 72
A78: 73
A79: 74 | AU79: =IF(AN79="","",VLOOKUP(AN79,$C$6:$F$505,4,0)) ->  | BQ79: =IF(BJ79="","",VLOOKUP(BJ79,$C$6:$F$505,4,0)) ->  | CM79: =IF(CF79="","",VLOOKUP(CF79,$C$6:$F$505,4,0)) ->  | DI79: =IF(DB79="","",VLOOKUP(DB79,$C$6:$F$505,4,0)) ->  | EE79: =IF(DX79="","",VLOOKUP(DX79,$C$6:$F$505,4,0)) -> 
A80: 75
A81: 76
A82: 77
A83: 78
A84: 79
A85: 80
A86: 81
A87: 82
A88: 83
A89: 84
A90: 85
A91: 86 | BF91: =IF(AY91="","",VLOOKUP(AY91,$C$6:$F$505,4,0)) ->  | CB91: =IF(BU91="","",VLOOKUP(BU91,$C$6:$F$505,4,0)) ->  | CX91: =IF(CQ91="","",VLOOKUP(CQ91,$C$6:$F$505,4,0)) ->  | DT91: =IF(DM91="","",VLOOKUP(DM91,$C$6:$F$505,4,0)) -> 
A92: 87
A93: 88
A94: 89
A95: 90
A96: 91
A97: 92
A98: 93
A99: 94
A100: 95
A101: 96
A102: 97
A103: 98
A104: 99
A105: 100
A106: 101
A107: 102
A108: 103
A109: 104
A110: 105
A111: 106
A112: 107
A113: 108
A114: 109
A115: 110
A116: 111
A117: 112
A118: 113
A119: 114
A120: 115
A121: 116
A122: 117
A123: 118
A124: 119
A125: 120
A126: 121
A127: 122
A128: 123
A129: 124
A130: 125
A131: 126
A132: 127
A133: 128
A134: 129 | E134: =IF(C134="","",$AC$4-LEFT(D134,2)-1) ->  | AL134: =IF(AD134="","",IF(AK134="自費公假","自費公假",IF(OR(AK134="核符，且前2年未補助",AND(AK134="核符，且去年未補助",AJ134="2年1次 4500，不可併去年")),VALUE(MID(AJ134,5,5)),IF(AK134="不符補助",0,IF(MID(AJ134,11,1)="不",MID(AJ134,5,5)*2,IF(AND(MID(AJ134,11,1)="可",AI134=0),MID(AJ134,5,5)*2,VALUE(MID(AJ134,5,5)))))))) ->  | BH134: =IF(AZ134="","",IF(BG134="自費公假","自費公假",IF(OR(BG134="核符，且前2年未補助",AND(BG134="核符，且去年未補助",BF134="2年1次 4500，不可併去年")),VALUE(MID(BF134,5,5)),IF(BG134="不符補助",0,IF(MID(BF134,11,1)="不",MID(BF134,5,5)*2,IF(AND(MID(BF134,11,1)="可",BE134=0),MID(BF134,5,5)*2,VALUE(MID(BF134,5,5)))))))) ->  | CD134: =IF(BV134="","",IF(CC134="自費公假","自費公假",IF(OR(CC134="核符，且前2年未補助",AND(CC134="核符，且去年未補助",CB134="2年1次 4500，不可併去年")),VALUE(MID(CB134,5,5)),IF(CC134="不符補助",0,IF(MID(CB134,11,1)="不",MID(CB134,5,5)*2,IF(AND(MID(CB134,11,1)="可",CA134=0),MID(CB134,5,5)*2,VALUE(MID(CB134,5,5)))))))) ->  | CZ134: =IF(CR134="","",IF(CY134="自費公假","自費公假",IF(OR(CY134="核符，且前2年未補助",AND(CY134="核符，且去年未補助",CX134="2年1次 4500，不可併去年")),VALUE(MID(CX134,5,5)),IF(CY134="不符補助",0,IF(MID(CX134,11,1)="不",MID(CX134,5,5)*2,IF(AND(MID(CX134,11,1)="可",CW134=0),MID(CX134,5,5)*2,VALUE(MID(CX134,5,5)))))))) ->  | DV134: =IF(DN134="","",IF(DU134="自費公假","自費公假",IF(OR(DU134="核符，且前2年未補助",AND(DU134="核符，且去年未補助",DT134="2年1次 4500，不可併去年")),VALUE(MID(DT134,5,5)),IF(DU134="不符補助",0,IF(MID(DT134,11,1)="不",MID(DT134,5,5)*2,IF(AND(MID(DT134,11,1)="可",DS134=0),MID(DT134,5,5)*2,VALUE(MID(DT134,5,5)))))))) -> 
A135: 130 | H135: =IF(G135="","",IFERROR(G$4-LEFT(VLOOKUP(G135,$B$6:$D$1899,3,0),2)-1,"未建檔")) ->  | J135: =IF(G135="","",IF(IFERROR(VLOOKUP(G135,$B$6:$D$505,2,0),"")="",0,VLOOKUP(G135,$B$6:$Q$505,2,0))) ->  | S135: =IF(R135="","",IFERROR(R$4-LEFT(VLOOKUP(R135,$B$6:$D$1899,3,0),2)-1,"未建檔")) ->  | U135: =IF(R135="","",IF(IFERROR(VLOOKUP(R135,$B$6:$D$505,2,0),"")="",0,VLOOKUP(R135,$B$6:$Q$505,2,0))) ->  | AD135: =IF(AC135="","",IFERROR(AC$4-LEFT(VLOOKUP(AC135,$B$6:$D$1899,3,0),2)-1,"未建檔")) ->  | AE135: =IF(AC135="","",IF(IFERROR(VLOOKUP(AC135,$B$6:$D$505,2,0),"")="",0,VLOOKUP(AC135,$B$6:$Q$505,2,0))) ->  | AH135: =IF(AC135="","",IF(IFERROR(VLOOKUP(AC135,G$6:Q$505,11,0),"")="",0,VLOOKUP(AC135,G$6:Q$505,11,0))) ->  | AI135: =IF(AC135="","",IF(IFERROR(VLOOKUP(AC135,R$6:AB$505,11,0),"")="",0,VLOOKUP(AC135,R$6:AB$505,11,0))) ->  | AJ135: =IF(AC135="","",VLOOKUP(AC135,$C$6:$F$505,4,0)) ->  | AK135: =IF(AC135="","",IF(AND(AJ135="2年1次自費公假",AI135=0),"自費公假",IF(AND(MID(AJ135,1,4)="3年1次",AI135=0,AH135=0),"核符，且前2年未補助",IF(AND(OR(MID(AJ135,1,9)="1年1次16000",MID(AJ135,1,9)="1年1次 8000",MID(AJ135,1,9)="1年1次 4000",MID(AJ135,1,9)="2年1次 4500"),AI135=0),"核符，且去年未補助",IF(AND(MID(AJ135,11,1)="可",AI135>0,OR(MID(AJ135,1,9)="1年1次16000",MID(AJ135,1,9)="1年1次 8000",MID(AJ135,1,9)="1年1次 4000")),"核符，但去年曾獲補助",IF(AND(MID(AJ135,11,1)="不",AI135>0,OR(MID(AJ135,1,9)="1年1次16000",MID(AJ135,1,9)="1年1次 8000",MID(AJ135,1,9)="1年1次 4000")),"核符","不符補助")))))) ->  | AO135: =IF(AN135="","",IFERROR(AN$4-LEFT(VLOOKUP(AN135,$B$6:$D$1899,3,0),2)-1,"未建檔")) ->  | AP135: =IF(AN135="","",IF(IFERROR(VLOOKUP(AN135,$B$6:$D$505,2,0),"")="",0,VLOOKUP(AN135,$B$6:$Q$505,2,0))) ->  | AS135: =IF(AN135="","",IF(IFERROR(VLOOKUP(AN135,R$6:AB$505,11,0),"")="",0,VLOOKUP(AN135,R$6:AB$505,11,0))) ->  | AT135: =IF(AN135="","",IF(IFERROR(VLOOKUP(AN135,AC$6:AM$505,11,0),"")="",0,VLOOKUP(AN135,AC$6:AM$505,11,0))) ->  | AV135: =IF(AN135="","",IF(AND(AU135="2年1次自費公假",AT135=0),"自費公假",IF(AND(MID(AU135,1,4)="3年1次",AT135=0,AS135=0),"核符，且前2年未補助",IF(AND(OR(MID(AU135,1,9)="1年1次16000",MID(AU135,1,9)="1年1次 8000",MID(AU135,1,9)="1年1次 4000",MID(AU135,1,9)="2年1次 4500"),AT135=0),"核符，且去年未補助",IF(AND(MID(AU135,11,1)="可",AT135>0,OR(MID(AU135,1,9)="1年1次16000",MID(AU135,1,9)="1年1次 8000",MID(AU135,1,9)="1年1次 4000")),"核符，但去年曾獲補助",IF(AND(MID(AU135,11,1)="不",AT135>0,OR(MID(AU135,1,9)="1年1次16000",MID(AU135,1,9)="1年1次 8000",MID(AU135,1,9)="1年1次 4000")),"核符","不符補助")))))) ->  | AW135: =IF(AO135="","",IF(AV135="自費公假","自費公假",IF(OR(AV135="核符，且前2年未補助",AND(AV135="核符，且去年未補助",AU135="2年1次 4500，不可併去年")),VALUE(MID(AU135,5,5)),IF(AV135="不符補助",0,IF(MID(AU135,11,1)="不",MID(AU135,5,5)*2,IF(AND(MID(AU135,11,1)="可",AT135=0),MID(AU135,5,5)*2,VALUE(MID(AU135,5,5)))))))) ->  | AZ135: =IF(AY135="","",IFERROR(AY$4-LEFT(VLOOKUP(AY135,$B$6:$D$1899,3,0),2)-1,"未建檔")) ->  | BA135: =IF(AY135="","",IF(IFERROR(VLOOKUP(AY135,$B$6:$D$505,2,0),"")="",0,VLOOKUP(AY135,$B$6:$Q$505,2,0))) ->  | BD135: =IF(AY135="","",IF(IFERROR(VLOOKUP(AY135,AC$6:AM$505,11,0),"")="",0,VLOOKUP(AY135,AC$6:AM$505,11,0))) ->  | BE135: =IF(AY135="","",IF(IFERROR(VLOOKUP(AY135,AN$6:AX$505,11,0),"")="",0,VLOOKUP(AY135,AN$6:AX$505,11,0))) ->  | BG135: =IF(AY135="","",IF(AND(BF135="2年1次自費公假",BE135=0),"自費公假",IF(AND(MID(BF135,1,4)="3年1次",BE135=0,BD135=0),"核符，且前2年未補助",IF(AND(OR(MID(BF135,1,9)="1年1次16000",MID(BF135,1,9)="1年1次 8000",MID(BF135,1,9)="1年1次 4000",MID(BF135,1,9)="2年1次 4500"),BE135=0),"核符，且去年未補助",IF(AND(MID(BF135,11,1)="可",BE135>0,OR(MID(BF135,1,9)="1年1次16000",MID(BF135,1,9)="1年1次 8000",MID(BF135,1,9)="1年1次 4000")),"核符，但去年曾獲補助",IF(AND(MID(BF135,11,1)="不",BE135>0,OR(MID(BF135,1,9)="1年1次16000",MID(BF135,1,9)="1年1次 8000",MID(BF135,1,9)="1年1次 4000")),"核符","不符補助")))))) ->  | BK135: =IF(BJ135="","",IFERROR(BJ$4-LEFT(VLOOKUP(BJ135,$B$6:$D$1899,3,0),2)-1,"未建檔")) ->  | BL135: =IF(BJ135="","",IF(IFERROR(VLOOKUP(BJ135,$B$6:$D$505,2,0),"")="",0,VLOOKUP(BJ135,$B$6:$Q$505,2,0))) ->  | BO135: =IF(BJ135="","",IF(IFERROR(VLOOKUP(BJ135,AN$6:AX$505,11,0),"")="",0,VLOOKUP(BJ135,AN$6:AX$505,11,0))) ->  | BP135: =IF(BJ135="","",IF(IFERROR(VLOOKUP(BJ135,AY$6:BI$505,11,0),"")="",0,VLOOKUP(BJ135,AY$6:BI$505,11,0))) ->  | BR135: =IF(BJ135="","",IF(AND(BQ135="2年1次自費公假",BP135=0),"自費公假",IF(AND(MID(BQ135,1,4)="3年1次",BP135=0,BO135=0),"核符，且前2年未補助",IF(AND(OR(MID(BQ135,1,9)="1年1次16000",MID(BQ135,1,9)="1年1次 8000",MID(BQ135,1,9)="1年1次 4000",MID(BQ135,1,9)="2年1次 4500"),BP135=0),"核符，且去年未補助",IF(AND(MID(BQ135,11,1)="可",BP135>0,OR(MID(BQ135,1,9)="1年1次16000",MID(BQ135,1,9)="1年1次 8000",MID(BQ135,1,9)="1年1次 4000")),"核符，但去年曾獲補助",IF(AND(MID(BQ135,11,1)="不",BP135>0,OR(MID(BQ135,1,9)="1年1次16000",MID(BQ135,1,9)="1年1次 8000",MID(BQ135,1,9)="1年1次 4000")),"核符","不符補助")))))) ->  | BS135: =IF(BK135="","",IF(BR135="自費公假","自費公假",IF(OR(BR135="核符，且前2年未補助",AND(BR135="核符，且去年未補助",BQ135="2年1次 4500，不可併去年")),VALUE(MID(BQ135,5,5)),IF(BR135="不符補助",0,IF(MID(BQ135,11,1)="不",MID(BQ135,5,5)*2,IF(AND(MID(BQ135,11,1)="可",BP135=0),MID(BQ135,5,5)*2,VALUE(MID(BQ135,5,5)))))))) ->  | BV135: =IF(BU135="","",IFERROR(BU$4-LEFT(VLOOKUP(BU135,$B$6:$D$1899,3,0),2)-1,"未建檔")) ->  | BW135: =IF(BU135="","",IF(IFERROR(VLOOKUP(BU135,$B$6:$D$505,2,0),"")="",0,VLOOKUP(BU135,$B$6:$Q$505,2,0))) ->  | BZ135: =IF(BU135="","",IF(IFERROR(VLOOKUP(BU135,AY$6:BI$505,11,0),"")="",0,VLOOKUP(BU135,AY$6:BI$505,11,0))) ->  | CA135: =IF(BU135="","",IF(IFERROR(VLOOKUP(BU135,BJ$6:BT$505,11,0),"")="",0,VLOOKUP(BU135,BJ$6:BT$505,11,0))) ->  | CC135: =IF(BU135="","",IF(AND(CB135="2年1次自費公假",CA135=0),"自費公假",IF(AND(MID(CB135,1,4)="3年1次",CA135=0,BZ135=0),"核符，且前2年未補助",IF(AND(OR(MID(CB135,1,9)="1年1次16000",MID(CB135,1,9)="1年1次 8000",MID(CB135,1,9)="1年1次 4000",MID(CB135,1,9)="2年1次 4500"),CA135=0),"核符，且去年未補助",IF(AND(MID(CB135,11,1)="可",CA135>0,OR(MID(CB135,1,9)="1年1次16000",MID(CB135,1,9)="1年1次 8000",MID(CB135,1,9)="1年1次 4000")),"核符，但去年曾獲補助",IF(AND(MID(CB135,11,1)="不",CA135>0,OR(MID(CB135,1,9)="1年1次16000",MID(CB135,1,9)="1年1次 8000",MID(CB135,1,9)="1年1次 4000")),"核符","不符補助")))))) ->  | CG135: =IF(CF135="","",IFERROR(CF$4-LEFT(VLOOKUP(CF135,$B$6:$D$1899,3,0),2)-1,"未建檔")) ->  | CH135: =IF(CF135="","",IF(IFERROR(VLOOKUP(CF135,$B$6:$D$505,2,0),"")="",0,VLOOKUP(CF135,$B$6:$Q$505,2,0))) ->  | CK135: =IF(CF135="","",IF(IFERROR(VLOOKUP(CF135,BJ$6:BT$505,11,0),"")="",0,VLOOKUP(CF135,BJ$6:BT$505,11,0))) ->  | CL135: =IF(CF135="","",IF(IFERROR(VLOOKUP(CF135,BU$6:CE$505,11,0),"")="",0,VLOOKUP(CF135,BU$6:CE$505,11,0))) ->  | CN135: =IF(CF135="","",IF(AND(CM135="2年1次自費公假",CL135=0),"自費公假",IF(AND(MID(CM135,1,4)="3年1次",CL135=0,CK135=0),"核符，且前2年未補助",IF(AND(OR(MID(CM135,1,9)="1年1次16000",MID(CM135,1,9)="1年1次 8000",MID(CM135,1,9)="1年1次 4000",MID(CM135,1,9)="2年1次 4500"),CL135=0),"核符，且去年未補助",IF(AND(MID(CM135,11,1)="可",CL135>0,OR(MID(CM135,1,9)="1年1次16000",MID(CM135,1,9)="1年1次 8000",MID(CM135,1,9)="1年1次 4000")),"核符，但去年曾獲補助",IF(AND(MID(CM135,11,1)="不",CL135>0,OR(MID(CM135,1,9)="1年1次16000",MID(CM135,1,9)="1年1次 8000",MID(CM135,1,9)="1年1次 4000")),"核符","不符補助")))))) ->  | CO135: =IF(CG135="","",IF(CN135="自費公假","自費公假",IF(OR(CN135="核符，且前2年未補助",AND(CN135="核符，且去年未補助",CM135="2年1次 4500，不可併去年")),VALUE(MID(CM135,5,5)),IF(CN135="不符補助",0,IF(MID(CM135,11,1)="不",MID(CM135,5,5)*2,IF(AND(MID(CM135,11,1)="可",CL135=0),MID(CM135,5,5)*2,VALUE(MID(CM135,5,5)))))))) ->  | CR135: =IF(CQ135="","",IFERROR(CQ$4-LEFT(VLOOKUP(CQ135,$B$6:$D$1899,3,0),2)-1,"未建檔")) ->  | CS135: =IF(CQ135="","",IF(IFERROR(VLOOKUP(CQ135,$B$6:$D$505,2,0),"")="",0,VLOOKUP(CQ135,$B$6:$Q$505,2,0))) ->  | CV135: =IF(CQ135="","",IF(IFERROR(VLOOKUP(CQ135,BU$6:CE$505,11,0),"")="",0,VLOOKUP(CQ135,BU$6:CE$505,11,0))) ->  | CW135: =IF(CQ135="","",IF(IFERROR(VLOOKUP(CQ135,CF$6:CP$505,11,0),"")="",0,VLOOKUP(CQ135,CF$6:CP$505,11,0))) ->  | CY135: =IF(CQ135="","",IF(AND(CX135="2年1次自費公假",CW135=0),"自費公假",IF(AND(MID(CX135,1,4)="3年1次",CW135=0,CV135=0),"核符，且前2年未補助",IF(AND(OR(MID(CX135,1,9)="1年1次16000",MID(CX135,1,9)="1年1次 8000",MID(CX135,1,9)="1年1次 4000",MID(CX135,1,9)="2年1次 4500"),CW135=0),"核符，且去年未補助",IF(AND(MID(CX135,11,1)="可",CW135>0,OR(MID(CX135,1,9)="1年1次16000",MID(CX135,1,9)="1年1次 8000",MID(CX135,1,9)="1年1次 4000")),"核符，但去年曾獲補助",IF(AND(MID(CX135,11,1)="不",CW135>0,OR(MID(CX135,1,9)="1年1次16000",MID(CX135,1,9)="1年1次 8000",MID(CX135,1,9)="1年1次 4000")),"核符","不符補助")))))) ->  | DC135: =IF(DB135="","",IFERROR(DB$4-LEFT(VLOOKUP(DB135,$B$6:$D$1899,3,0),2)-1,"未建檔")) ->  | DD135: =IF(DB135="","",IF(IFERROR(VLOOKUP(DB135,$B$6:$D$505,2,0),"")="",0,VLOOKUP(DB135,$B$6:$Q$505,2,0))) ->  | DG135: =IF(DB135="","",IF(IFERROR(VLOOKUP(DB135,CF$6:CP$505,11,0),"")="",0,VLOOKUP(DB135,CF$6:CP$505,11,0))) ->  | DH135: =IF(DB135="","",IF(IFERROR(VLOOKUP(DB135,CQ$6:DA$505,11,0),"")="",0,VLOOKUP(DB135,CQ$6:DA$505,11,0))) ->  | DJ135: =IF(DB135="","",IF(AND(DI135="2年1次自費公假",DH135=0),"自費公假",IF(AND(MID(DI135,1,4)="3年1次",DH135=0,DG135=0),"核符，且前2年未補助",IF(AND(OR(MID(DI135,1,9)="1年1次16000",MID(DI135,1,9)="1年1次 8000",MID(DI135,1,9)="1年1次 4000",MID(DI135,1,9)="2年1次 4500"),DH135=0),"核符，且去年未補助",IF(AND(MID(DI135,11,1)="可",DH135>0,OR(MID(DI135,1,9)="1年1次16000",MID(DI135,1,9)="1年1次 8000",MID(DI135,1,9)="1年1次 4000")),"核符，但去年曾獲補助",IF(AND(MID(DI135,11,1)="不",DH135>0,OR(MID(DI135,1,9)="1年1次16000",MID(DI135,1,9)="1年1次 8000",MID(DI135,1,9)="1年1次 4000")),"核符","不符補助")))))) ->  | DK135: =IF(DC135="","",IF(DJ135="自費公假","自費公假",IF(OR(DJ135="核符，且前2年未補助",AND(DJ135="核符，且去年未補助",DI135="2年1次 4500，不可併去年")),VALUE(MID(DI135,5,5)),IF(DJ135="不符補助",0,IF(MID(DI135,11,1)="不",MID(DI135,5,5)*2,IF(AND(MID(DI135,11,1)="可",DH135=0),MID(DI135,5,5)*2,VALUE(MID(DI135,5,5)))))))) ->  | DN135: =IF(DM135="","",IFERROR(DM$4-LEFT(VLOOKUP(DM135,$B$6:$D$1899,3,0),2)-1,"未建檔")) ->  | DO135: =IF(DM135="","",IF(IFERROR(VLOOKUP(DM135,$B$6:$D$505,2,0),"")="",0,VLOOKUP(DM135,$B$6:$Q$505,2,0))) ->  | DR135: =IF(DM135="","",IF(IFERROR(VLOOKUP(DM135,CQ$6:DA$505,11,0),"")="",0,VLOOKUP(DM135,CQ$6:DA$505,11,0))) ->  | DS135: =IF(DM135="","",IF(IFERROR(VLOOKUP(DM135,DB$6:DL$505,11,0),"")="",0,VLOOKUP(DM135,DB$6:DL$505,11,0))) ->  | DU135: =IF(DM135="","",IF(AND(DT135="2年1次自費公假",DS135=0),"自費公假",IF(AND(MID(DT135,1,4)="3年1次",DS135=0,DR135=0),"核符，且前2年未補助",IF(AND(OR(MID(DT135,1,9)="1年1次16000",MID(DT135,1,9)="1年1次 8000",MID(DT135,1,9)="1年1次 4000",MID(DT135,1,9)="2年1次 4500"),DS135=0),"核符，且去年未補助",IF(AND(MID(DT135,11,1)="可",DS135>0,OR(MID(DT135,1,9)="1年1次16000",MID(DT135,1,9)="1年1次 8000",MID(DT135,1,9)="1年1次 4000")),"核符，但去年曾獲補助",IF(AND(MID(DT135,11,1)="不",DS135>0,OR(MID(DT135,1,9)="1年1次16000",MID(DT135,1,9)="1年1次 8000",MID(DT135,1,9)="1年1次 4000")),"核符","不符補助")))))) ->  | DY135: =IF(DX135="","",IFERROR(DX$4-LEFT(VLOOKUP(DX135,$B$6:$D$1899,3,0),2)-1,"未建檔")) ->  | DZ135: =IF(DX135="","",IF(IFERROR(VLOOKUP(DX135,$B$6:$D$505,2,0),"")="",0,VLOOKUP(DX135,$B$6:$Q$505,2,0))) ->  | EC135: =IF(DX135="","",IF(IFERROR(VLOOKUP(DX135,DB$6:DL$505,11,0),"")="",0,VLOOKUP(DX135,DB$6:DL$505,11,0))) ->  | ED135: =IF(DX135="","",IF(IFERROR(VLOOKUP(DX135,DM$6:DW$505,11,0),"")="",0,VLOOKUP(DX135,DM$6:DW$505,11,0))) ->  | EF135: =IF(DX135="","",IF(AND(EE135="2年1次自費公假",ED135=0),"自費公假",IF(AND(MID(EE135,1,4)="3年1次",ED135=0,EC135=0),"核符，且前2年未補助",IF(AND(OR(MID(EE135,1,9)="1年1次16000",MID(EE135,1,9)="1年1次 8000",MID(EE135,1,9)="1年1次 4000",MID(EE135,1,9)="2年1次 4500"),ED135=0),"核符，且去年未補助",IF(AND(MID(EE135,11,1)="可",ED135>0,OR(MID(EE135,1,9)="1年1次16000",MID(EE135,1,9)="1年1次 8000",MID(EE135,1,9)="1年1次 4000")),"核符，但去年曾獲補助",IF(AND(MID(EE135,11,1)="不",ED135>0,OR(MID(EE135,1,9)="1年1次16000",MID(EE135,1,9)="1年1次 8000",MID(EE135,1,9)="1年1次 4000")),"核符","不符補助")))))) ->  | EG135: =IF(DY135="","",IF(EF135="自費公假","自費公假",IF(OR(EF135="核符，且前2年未補助",AND(EF135="核符，且去年未補助",EE135="2年1次 4500，不可併去年")),VALUE(MID(EE135,5,5)),IF(EF135="不符補助",0,IF(MID(EE135,11,1)="不",MID(EE135,5,5)*2,IF(AND(MID(EE135,11,1)="可",ED135=0),MID(EE135,5,5)*2,VALUE(MID(EE135,5,5)))))))) -> 
A136: 131
A137: 132
A138: 133
A139: 134
A140: 135
A141: 136
A142: 137
A143: 138 | AU143: =IF(AN143="","",VLOOKUP(AN143,$C$6:$F$505,4,0)) ->  | BQ143: =IF(BJ143="","",VLOOKUP(BJ143,$C$6:$F$505,4,0)) ->  | CM143: =IF(CF143="","",VLOOKUP(CF143,$C$6:$F$505,4,0)) ->  | DI143: =IF(DB143="","",VLOOKUP(DB143,$C$6:$F$505,4,0)) ->  | EE143: =IF(DX143="","",VLOOKUP(DX143,$C$6:$F$505,4,0)) -> 
A144: 139
A145: 140
A146: 141
A147: 142
A148: 143
A149: 144
A150: 145
A151: 146
A152: 147
A153: 148
A154: 149
A155: 150 | BF155: =IF(AY155="","",VLOOKUP(AY155,$C$6:$F$505,4,0)) ->  | CB155: =IF(BU155="","",VLOOKUP(BU155,$C$6:$F$505,4,0)) ->  | CX155: =IF(CQ155="","",VLOOKUP(CQ155,$C$6:$F$505,4,0)) ->  | DT155: =IF(DM155="","",VLOOKUP(DM155,$C$6:$F$505,4,0)) -> 
A156: 151
A157: 152
A158: 153
A159: 154
A160: 155
A161: 156
A162: 157
A163: 158
A164: 159
A165: 160
A166: 161
A167: 162
A168: 163
A169: 164
A170: 165
A171: 166
A172: 167
A173: 168
A174: 169
A175: 170
A176: 171
A177: 172
A178: 173
A179: 174
A180: 175
A181: 176
A182: 177
A183: 178
A184: 179
A185: 180
A186: 181
A187: 182
A188: 183
A189: 184
A190: 185
A191: 186
A192: 187
A193: 188
A194: 189
A195: 190
A196: 191
A197: 192
A198: 193 | E198: =IF(C198="","",$AC$4-LEFT(D198,2)-1) ->  | AL198: =IF(AD198="","",IF(AK198="自費公假","自費公假",IF(OR(AK198="核符，且前2年未補助",AND(AK198="核符，且去年未補助",AJ198="2年1次 4500，不可併去年")),VALUE(MID(AJ198,5,5)),IF(AK198="不符補助",0,IF(MID(AJ198,11,1)="不",MID(AJ198,5,5)*2,IF(AND(MID(AJ198,11,1)="可",AI198=0),MID(AJ198,5,5)*2,VALUE(MID(AJ198,5,5)))))))) ->  | BH198: =IF(AZ198="","",IF(BG198="自費公假","自費公假",IF(OR(BG198="核符，且前2年未補助",AND(BG198="核符，且去年未補助",BF198="2年1次 4500，不可併去年")),VALUE(MID(BF198,5,5)),IF(BG198="不符補助",0,IF(MID(BF198,11,1)="不",MID(BF198,5,5)*2,IF(AND(MID(BF198,11,1)="可",BE198=0),MID(BF198,5,5)*2,VALUE(MID(BF198,5,5)))))))) ->  | CD198: =IF(BV198="","",IF(CC198="自費公假","自費公假",IF(OR(CC198="核符，且前2年未補助",AND(CC198="核符，且去年未補助",CB198="2年1次 4500，不可併去年")),VALUE(MID(CB198,5,5)),IF(CC198="不符補助",0,IF(MID(CB198,11,1)="不",MID(CB198,5,5)*2,IF(AND(MID(CB198,11,1)="可",CA198=0),MID(CB198,5,5)*2,VALUE(MID(CB198,5,5)))))))) ->  | CZ198: =IF(CR198="","",IF(CY198="自費公假","自費公假",IF(OR(CY198="核符，且前2年未補助",AND(CY198="核符，且去年未補助",CX198="2年1次 4500，不可併去年")),VALUE(MID(CX198,5,5)),IF(CY198="不符補助",0,IF(MID(CX198,11,1)="不",MID(CX198,5,5)*2,IF(AND(MID(CX198,11,1)="可",CW198=0),MID(CX198,5,5)*2,VALUE(MID(CX198,5,5)))))))) ->  | DV198: =IF(DN198="","",IF(DU198="自費公假","自費公假",IF(OR(DU198="核符，且前2年未補助",AND(DU198="核符，且去年未補助",DT198="2年1次 4500，不可併去年")),VALUE(MID(DT198,5,5)),IF(DU198="不符補助",0,IF(MID(DT198,11,1)="不",MID(DT198,5,5)*2,IF(AND(MID(DT198,11,1)="可",DS198=0),MID(DT198,5,5)*2,VALUE(MID(DT198,5,5)))))))) -> 
A199: 194 | H199: =IF(G199="","",IFERROR(G$4-LEFT(VLOOKUP(G199,$B$6:$D$1899,3,0),2)-1,"未建檔")) ->  | J199: =IF(G199="","",IF(IFERROR(VLOOKUP(G199,$B$6:$D$505,2,0),"")="",0,VLOOKUP(G199,$B$6:$Q$505,2,0))) ->  | S199: =IF(R199="","",IFERROR(R$4-LEFT(VLOOKUP(R199,$B$6:$D$1899,3,0),2)-1,"未建檔")) ->  | U199: =IF(R199="","",IF(IFERROR(VLOOKUP(R199,$B$6:$D$505,2,0),"")="",0,VLOOKUP(R199,$B$6:$Q$505,2,0))) ->  | AD199: =IF(AC199="","",IFERROR(AC$4-LEFT(VLOOKUP(AC199,$B$6:$D$1899,3,0),2)-1,"未建檔")) ->  | AE199: =IF(AC199="","",IF(IFERROR(VLOOKUP(AC199,$B$6:$D$505,2,0),"")="",0,VLOOKUP(AC199,$B$6:$Q$505,2,0))) ->  | AH199: =IF(AC199="","",IF(IFERROR(VLOOKUP(AC199,G$6:Q$505,11,0),"")="",0,VLOOKUP(AC199,G$6:Q$505,11,0))) ->  | AI199: =IF(AC199="","",IF(IFERROR(VLOOKUP(AC199,R$6:AB$505,11,0),"")="",0,VLOOKUP(AC199,R$6:AB$505,11,0))) ->  | AJ199: =IF(AC199="","",VLOOKUP(AC199,$C$6:$F$505,4,0)) ->  | AK199: =IF(AC199="","",IF(AND(AJ199="2年1次自費公假",AI199=0),"自費公假",IF(AND(MID(AJ199,1,4)="3年1次",AI199=0,AH199=0),"核符，且前2年未補助",IF(AND(OR(MID(AJ199,1,9)="1年1次16000",MID(AJ199,1,9)="1年1次 8000",MID(AJ199,1,9)="1年1次 4000",MID(AJ199,1,9)="2年1次 4500"),AI199=0),"核符，且去年未補助",IF(AND(MID(AJ199,11,1)="可",AI199>0,OR(MID(AJ199,1,9)="1年1次16000",MID(AJ199,1,9)="1年1次 8000",MID(AJ199,1,9)="1年1次 4000")),"核符，但去年曾獲補助",IF(AND(MID(AJ199,11,1)="不",AI199>0,OR(MID(AJ199,1,9)="1年1次16000",MID(AJ199,1,9)="1年1次 8000",MID(AJ199,1,9)="1年1次 4000")),"核符","不符補助")))))) ->  | AO199: =IF(AN199="","",IFERROR(AN$4-LEFT(VLOOKUP(AN199,$B$6:$D$1899,3,0),2)-1,"未建檔")) ->  | AP199: =IF(AN199="","",IF(IFERROR(VLOOKUP(AN199,$B$6:$D$505,2,0),"")="",0,VLOOKUP(AN199,$B$6:$Q$505,2,0))) ->  | AS199: =IF(AN199="","",IF(IFERROR(VLOOKUP(AN199,R$6:AB$505,11,0),"")="",0,VLOOKUP(AN199,R$6:AB$505,11,0))) ->  | AT199: =IF(AN199="","",IF(IFERROR(VLOOKUP(AN199,AC$6:AM$505,11,0),"")="",0,VLOOKUP(AN199,AC$6:AM$505,11,0))) ->  | AV199: =IF(AN199="","",IF(AND(AU199="2年1次自費公假",AT199=0),"自費公假",IF(AND(MID(AU199,1,4)="3年1次",AT199=0,AS199=0),"核符，且前2年未補助",IF(AND(OR(MID(AU199,1,9)="1年1次16000",MID(AU199,1,9)="1年1次 8000",MID(AU199,1,9)="1年1次 4000",MID(AU199,1,9)="2年1次 4500"),AT199=0),"核符，且去年未補助",IF(AND(MID(AU199,11,1)="可",AT199>0,OR(MID(AU199,1,9)="1年1次16000",MID(AU199,1,9)="1年1次 8000",MID(AU199,1,9)="1年1次 4000")),"核符，但去年曾獲補助",IF(AND(MID(AU199,11,1)="不",AT199>0,OR(MID(AU199,1,9)="1年1次16000",MID(AU199,1,9)="1年1次 8000",MID(AU199,1,9)="1年1次 4000")),"核符","不符補助")))))) ->  | AW199: =IF(AO199="","",IF(AV199="自費公假","自費公假",IF(OR(AV199="核符，且前2年未補助",AND(AV199="核符，且去年未補助",AU199="2年1次 4500，不可併去年")),VALUE(MID(AU199,5,5)),IF(AV199="不符補助",0,IF(MID(AU199,11,1)="不",MID(AU199,5,5)*2,IF(AND(MID(AU199,11,1)="可",AT199=0),MID(AU199,5,5)*2,VALUE(MID(AU199,5,5)))))))) ->  | AZ199: =IF(AY199="","",IFERROR(AY$4-LEFT(VLOOKUP(AY199,$B$6:$D$1899,3,0),2)-1,"未建檔")) ->  | BA199: =IF(AY199="","",IF(IFERROR(VLOOKUP(AY199,$B$6:$D$505,2,0),"")="",0,VLOOKUP(AY199,$B$6:$Q$505,2,0))) ->  | BD199: =IF(AY199="","",IF(IFERROR(VLOOKUP(AY199,AC$6:AM$505,11,0),"")="",0,VLOOKUP(AY199,AC$6:AM$505,11,0))) ->  | BE199: =IF(AY199="","",IF(IFERROR(VLOOKUP(AY199,AN$6:AX$505,11,0),"")="",0,VLOOKUP(AY199,AN$6:AX$505,11,0))) ->  | BG199: =IF(AY199="","",IF(AND(BF199="2年1次自費公假",BE199=0),"自費公假",IF(AND(MID(BF199,1,4)="3年1次",BE199=0,BD199=0),"核符，且前2年未補助",IF(AND(OR(MID(BF199,1,9)="1年1次16000",MID(BF199,1,9)="1年1次 8000",MID(BF199,1,9)="1年1次 4000",MID(BF199,1,9)="2年1次 4500"),BE199=0),"核符，且去年未補助",IF(AND(MID(BF199,11,1)="可",BE199>0,OR(MID(BF199,1,9)="1年1次16000",MID(BF199,1,9)="1年1次 8000",MID(BF199,1,9)="1年1次 4000")),"核符，但去年曾獲補助",IF(AND(MID(BF199,11,1)="不",BE199>0,OR(MID(BF199,1,9)="1年1次16000",MID(BF199,1,9)="1年1次 8000",MID(BF199,1,9)="1年1次 4000")),"核符","不符補助")))))) ->  | BK199: =IF(BJ199="","",IFERROR(BJ$4-LEFT(VLOOKUP(BJ199,$B$6:$D$1899,3,0),2)-1,"未建檔")) ->  | BL199: =IF(BJ199="","",IF(IFERROR(VLOOKUP(BJ199,$B$6:$D$505,2,0),"")="",0,VLOOKUP(BJ199,$B$6:$Q$505,2,0))) ->  | BO199: =IF(BJ199="","",IF(IFERROR(VLOOKUP(BJ199,AN$6:AX$505,11,0),"")="",0,VLOOKUP(BJ199,AN$6:AX$505,11,0))) ->  | BP199: =IF(BJ199="","",IF(IFERROR(VLOOKUP(BJ199,AY$6:BI$505,11,0),"")="",0,VLOOKUP(BJ199,AY$6:BI$505,11,0))) ->  | BR199: =IF(BJ199="","",IF(AND(BQ199="2年1次自費公假",BP199=0),"自費公假",IF(AND(MID(BQ199,1,4)="3年1次",BP199=0,BO199=0),"核符，且前2年未補助",IF(AND(OR(MID(BQ199,1,9)="1年1次16000",MID(BQ199,1,9)="1年1次 8000",MID(BQ199,1,9)="1年1次 4000",MID(BQ199,1,9)="2年1次 4500"),BP199=0),"核符，且去年未補助",IF(AND(MID(BQ199,11,1)="可",BP199>0,OR(MID(BQ199,1,9)="1年1次16000",MID(BQ199,1,9)="1年1次 8000",MID(BQ199,1,9)="1年1次 4000")),"核符，但去年曾獲補助",IF(AND(MID(BQ199,11,1)="不",BP199>0,OR(MID(BQ199,1,9)="1年1次16000",MID(BQ199,1,9)="1年1次 8000",MID(BQ199,1,9)="1年1次 4000")),"核符","不符補助")))))) ->  | BS199: =IF(BK199="","",IF(BR199="自費公假","自費公假",IF(OR(BR199="核符，且前2年未補助",AND(BR199="核符，且去年未補助",BQ199="2年1次 4500，不可併去年")),VALUE(MID(BQ199,5,5)),IF(BR199="不符補助",0,IF(MID(BQ199,11,1)="不",MID(BQ199,5,5)*2,IF(AND(MID(BQ199,11,1)="可",BP199=0),MID(BQ199,5,5)*2,VALUE(MID(BQ199,5,5)))))))) ->  | BV199: =IF(BU199="","",IFERROR(BU$4-LEFT(VLOOKUP(BU199,$B$6:$D$1899,3,0),2)-1,"未建檔")) ->  | BW199: =IF(BU199="","",IF(IFERROR(VLOOKUP(BU199,$B$6:$D$505,2,0),"")="",0,VLOOKUP(BU199,$B$6:$Q$505,2,0))) ->  | BZ199: =IF(BU199="","",IF(IFERROR(VLOOKUP(BU199,AY$6:BI$505,11,0),"")="",0,VLOOKUP(BU199,AY$6:BI$505,11,0))) ->  | CA199: =IF(BU199="","",IF(IFERROR(VLOOKUP(BU199,BJ$6:BT$505,11,0),"")="",0,VLOOKUP(BU199,BJ$6:BT$505,11,0))) ->  | CC199: =IF(BU199="","",IF(AND(CB199="2年1次自費公假",CA199=0),"自費公假",IF(AND(MID(CB199,1,4)="3年1次",CA199=0,BZ199=0),"核符，且前2年未補助",IF(AND(OR(MID(CB199,1,9)="1年1次16000",MID(CB199,1,9)="1年1次 8000",MID(CB199,1,9)="1年1次 4000",MID(CB199,1,9)="2年1次 4500"),CA199=0),"核符，且去年未補助",IF(AND(MID(CB199,11,1)="可",CA199>0,OR(MID(CB199,1,9)="1年1次16000",MID(CB199,1,9)="1年1次 8000",MID(CB199,1,9)="1年1次 4000")),"核符，但去年曾獲補助",IF(AND(MID(CB199,11,1)="不",CA199>0,OR(MID(CB199,1,9)="1年1次16000",MID(CB199,1,9)="1年1次 8000",MID(CB199,1,9)="1年1次 4000")),"核符","不符補助")))))) ->  | CG199: =IF(CF199="","",IFERROR(CF$4-LEFT(VLOOKUP(CF199,$B$6:$D$1899,3,0),2)-1,"未建檔")) ->  | CH199: =IF(CF199="","",IF(IFERROR(VLOOKUP(CF199,$B$6:$D$505,2,0),"")="",0,VLOOKUP(CF199,$B$6:$Q$505,2,0))) ->  | CK199: =IF(CF199="","",IF(IFERROR(VLOOKUP(CF199,BJ$6:BT$505,11,0),"")="",0,VLOOKUP(CF199,BJ$6:BT$505,11,0))) ->  | CL199: =IF(CF199="","",IF(IFERROR(VLOOKUP(CF199,BU$6:CE$505,11,0),"")="",0,VLOOKUP(CF199,BU$6:CE$505,11,0))) ->  | CN199: =IF(CF199="","",IF(AND(CM199="2年1次自費公假",CL199=0),"自費公假",IF(AND(MID(CM199,1,4)="3年1次",CL199=0,CK199=0),"核符，且前2年未補助",IF(AND(OR(MID(CM199,1,9)="1年1次16000",MID(CM199,1,9)="1年1次 8000",MID(CM199,1,9)="1年1次 4000",MID(CM199,1,9)="2年1次 4500"),CL199=0),"核符，且去年未補助",IF(AND(MID(CM199,11,1)="可",CL199>0,OR(MID(CM199,1,9)="1年1次16000",MID(CM199,1,9)="1年1次 8000",MID(CM199,1,9)="1年1次 4000")),"核符，但去年曾獲補助",IF(AND(MID(CM199,11,1)="不",CL199>0,OR(MID(CM199,1,9)="1年1次16000",MID(CM199,1,9)="1年1次 8000",MID(CM199,1,9)="1年1次 4000")),"核符","不符補助")))))) ->  | CO199: =IF(CG199="","",IF(CN199="自費公假","自費公假",IF(OR(CN199="核符，且前2年未補助",AND(CN199="核符，且去年未補助",CM199="2年1次 4500，不可併去年")),VALUE(MID(CM199,5,5)),IF(CN199="不符補助",0,IF(MID(CM199,11,1)="不",MID(CM199,5,5)*2,IF(AND(MID(CM199,11,1)="可",CL199=0),MID(CM199,5,5)*2,VALUE(MID(CM199,5,5)))))))) ->  | CR199: =IF(CQ199="","",IFERROR(CQ$4-LEFT(VLOOKUP(CQ199,$B$6:$D$1899,3,0),2)-1,"未建檔")) ->  | CS199: =IF(CQ199="","",IF(IFERROR(VLOOKUP(CQ199,$B$6:$D$505,2,0),"")="",0,VLOOKUP(CQ199,$B$6:$Q$505,2,0))) ->  | CV199: =IF(CQ199="","",IF(IFERROR(VLOOKUP(CQ199,BU$6:CE$505,11,0),"")="",0,VLOOKUP(CQ199,BU$6:CE$505,11,0))) ->  | CW199: =IF(CQ199="","",IF(IFERROR(VLOOKUP(CQ199,CF$6:CP$505,11,0),"")="",0,VLOOKUP(CQ199,CF$6:CP$505,11,0))) ->  | CY199: =IF(CQ199="","",IF(AND(CX199="2年1次自費公假",CW199=0),"自費公假",IF(AND(MID(CX199,1,4)="3年1次",CW199=0,CV199=0),"核符，且前2年未補助",IF(AND(OR(MID(CX199,1,9)="1年1次16000",MID(CX199,1,9)="1年1次 8000",MID(CX199,1,9)="1年1次 4000",MID(CX199,1,9)="2年1次 4500"),CW199=0),"核符，且去年未補助",IF(AND(MID(CX199,11,1)="可",CW199>0,OR(MID(CX199,1,9)="1年1次16000",MID(CX199,1,9)="1年1次 8000",MID(CX199,1,9)="1年1次 4000")),"核符，但去年曾獲補助",IF(AND(MID(CX199,11,1)="不",CW199>0,OR(MID(CX199,1,9)="1年1次16000",MID(CX199,1,9)="1年1次 8000",MID(CX199,1,9)="1年1次 4000")),"核符","不符補助")))))) ->  | DC199: =IF(DB199="","",IFERROR(DB$4-LEFT(VLOOKUP(DB199,$B$6:$D$1899,3,0),2)-1,"未建檔")) ->  | DD199: =IF(DB199="","",IF(IFERROR(VLOOKUP(DB199,$B$6:$D$505,2,0),"")="",0,VLOOKUP(DB199,$B$6:$Q$505,2,0))) ->  | DG199: =IF(DB199="","",IF(IFERROR(VLOOKUP(DB199,CF$6:CP$505,11,0),"")="",0,VLOOKUP(DB199,CF$6:CP$505,11,0))) ->  | DH199: =IF(DB199="","",IF(IFERROR(VLOOKUP(DB199,CQ$6:DA$505,11,0),"")="",0,VLOOKUP(DB199,CQ$6:DA$505,11,0))) ->  | DJ199: =IF(DB199="","",IF(AND(DI199="2年1次自費公假",DH199=0),"自費公假",IF(AND(MID(DI199,1,4)="3年1次",DH199=0,DG199=0),"核符，且前2年未補助",IF(AND(OR(MID(DI199,1,9)="1年1次16000",MID(DI199,1,9)="1年1次 8000",MID(DI199,1,9)="1年1次 4000",MID(DI199,1,9)="2年1次 4500"),DH199=0),"核符，且去年未補助",IF(AND(MID(DI199,11,1)="可",DH199>0,OR(MID(DI199,1,9)="1年1次16000",MID(DI199,1,9)="1年1次 8000",MID(DI199,1,9)="1年1次 4000")),"核符，但去年曾獲補助",IF(AND(MID(DI199,11,1)="不",DH199>0,OR(MID(DI199,1,9)="1年1次16000",MID(DI199,1,9)="1年1次 8000",MID(DI199,1,9)="1年1次 4000")),"核符","不符補助")))))) ->  | DK199: =IF(DC199="","",IF(DJ199="自費公假","自費公假",IF(OR(DJ199="核符，且前2年未補助",AND(DJ199="核符，且去年未補助",DI199="2年1次 4500，不可併去年")),VALUE(MID(DI199,5,5)),IF(DJ199="不符補助",0,IF(MID(DI199,11,1)="不",MID(DI199,5,5)*2,IF(AND(MID(DI199,11,1)="可",DH199=0),MID(DI199,5,5)*2,VALUE(MID(DI199,5,5)))))))) ->  | DN199: =IF(DM199="","",IFERROR(DM$4-LEFT(VLOOKUP(DM199,$B$6:$D$1899,3,0),2)-1,"未建檔")) ->  | DO199: =IF(DM199="","",IF(IFERROR(VLOOKUP(DM199,$B$6:$D$505,2,0),"")="",0,VLOOKUP(DM199,$B$6:$Q$505,2,0))) ->  | DR199: =IF(DM199="","",IF(IFERROR(VLOOKUP(DM199,CQ$6:DA$505,11,0),"")="",0,VLOOKUP(DM199,CQ$6:DA$505,11,0))) ->  | DS199: =IF(DM199="","",IF(IFERROR(VLOOKUP(DM199,DB$6:DL$505,11,0),"")="",0,VLOOKUP(DM199,DB$6:DL$505,11,0))) ->  | DU199: =IF(DM199="","",IF(AND(DT199="2年1次自費公假",DS199=0),"自費公假",IF(AND(MID(DT199,1,4)="3年1次",DS199=0,DR199=0),"核符，且前2年未補助",IF(AND(OR(MID(DT199,1,9)="1年1次16000",MID(DT199,1,9)="1年1次 8000",MID(DT199,1,9)="1年1次 4000",MID(DT199,1,9)="2年1次 4500"),DS199=0),"核符，且去年未補助",IF(AND(MID(DT199,11,1)="可",DS199>0,OR(MID(DT199,1,9)="1年1次16000",MID(DT199,1,9)="1年1次 8000",MID(DT199,1,9)="1年1次 4000")),"核符，但去年曾獲補助",IF(AND(MID(DT199,11,1)="不",DS199>0,OR(MID(DT199,1,9)="1年1次16000",MID(DT199,1,9)="1年1次 8000",MID(DT199,1,9)="1年1次 4000")),"核符","不符補助")))))) ->  | DY199: =IF(DX199="","",IFERROR(DX$4-LEFT(VLOOKUP(DX199,$B$6:$D$1899,3,0),2)-1,"未建檔")) ->  | DZ199: =IF(DX199="","",IF(IFERROR(VLOOKUP(DX199,$B$6:$D$505,2,0),"")="",0,VLOOKUP(DX199,$B$6:$Q$505,2,0))) ->  | EC199: =IF(DX199="","",IF(IFERROR(VLOOKUP(DX199,DB$6:DL$505,11,0),"")="",0,VLOOKUP(DX199,DB$6:DL$505,11,0))) ->  | ED199: =IF(DX199="","",IF(IFERROR(VLOOKUP(DX199,DM$6:DW$505,11,0),"")="",0,VLOOKUP(DX199,DM$6:DW$505,11,0))) ->  | EF199: =IF(DX199="","",IF(AND(EE199="2年1次自費公假",ED199=0),"自費公假",IF(AND(MID(EE199,1,4)="3年1次",ED199=0,EC199=0),"核符，且前2年未補助",IF(AND(OR(MID(EE199,1,9)="1年1次16000",MID(EE199,1,9)="1年1次 8000",MID(EE199,1,9)="1年1次 4000",MID(EE199,1,9)="2年1次 4500"),ED199=0),"核符，且去年未補助",IF(AND(MID(EE199,11,1)="可",ED199>0,OR(MID(EE199,1,9)="1年1次16000",MID(EE199,1,9)="1年1次 8000",MID(EE199,1,9)="1年1次 4000")),"核符，但去年曾獲補助",IF(AND(MID(EE199,11,1)="不",ED199>0,OR(MID(EE199,1,9)="1年1次16000",MID(EE199,1,9)="1年1次 8000",MID(EE199,1,9)="1年1次 4000")),"核符","不符補助")))))) ->  | EG199: =IF(DY199="","",IF(EF199="自費公假","自費公假",IF(OR(EF199="核符，且前2年未補助",AND(EF199="核符，且去年未補助",EE199="2年1次 4500，不可併去年")),VALUE(MID(EE199,5,5)),IF(EF199="不符補助",0,IF(MID(EE199,11,1)="不",MID(EE199,5,5)*2,IF(AND(MID(EE199,11,1)="可",ED199=0),MID(EE199,5,5)*2,VALUE(MID(EE199,5,5)))))))) -> 
A200: 195
... 305 more rows

Sheet 工作表3 (hidden)
A1: 1年1次16000，可併去年 | C1: 1年1次-今年額度已用磬
A2: 1年1次16000，不可併去年 | C2: 1年1次-今年度尚有額度
A3: 1年1次 8000，可併去年 | C3: 1年1次-今年尚未實施
A4: 1年1次 8000，不可併去年 | C4: 2年1次-今年已用半數
A5: 1年1次 4000，可併去年 | C5: 2年1次-今年度已用磬
A6: 1年1次 4000，不可併去年 | C6: 2年1次-今年尚未實施
A7: 2年1次 4500，不可併去年 | C7: 3年1次-前兩年已用磬
A8: 3年1次 3500，不可併去年 | C8: 3年1次-前兩年未實施
A9: 2年1次自費公假 | C9: 自費公假-今年已用磬
C10: 自費公假-今年未實施
